Cogmind - Beta 11.1 @@@ ROGUE MODE // 2022.05.10 @ 02:44:59 Player: aperiodic Result: Destroyed by G-67 Veteran with Field Laser Performance ------------- Evolutions (7) 3500 Regions Visited (32) 6400 Robots Destroyed (680) 3400 Value Destroyed (29809) 29809 Prototype IDs (100) 2000 Alien Tech Used (0) 0 Bonus (19224) 19224 TOTAL SCORE: 64333 Bonus ------- Triggered High Security 500 High Alert Combat Kills 8830 Follower Combat Kills 3186 Network Hubs Disabled 200 Aligned with FarCom 300 Met Data Miner 300 Met Imprinter 300 Was Imprinted 300 Met Zhirov 300 Met Warlord at Base 500 MAIN.C Attacked Warlord 500 Warlord Defense Kill 3480 A7 Reached Mainframe 300 Met R17 at Cetus 500 Read Decrypted Archives 300 Scanned by Researcher 500 Friendly Fire -1072 Cogmind --------- Core Integrity 0/1300 Matter 195/300 Energy 618/700 System Corruption 49% Temperature Cool (0) Movement Core (100) Ox1 Location -3/Testing Parts ------- > --- POWER (2) -------- (None) > --- PROPULSION (6) --- (None) > --- UTILITY (10) ----- Zionite Biocell Improved Signal Interpreter Graphene Brace Experimental System Shield > --- WEAPON (3) ------- Plasma Sword > --- INVENTORY (5) ---- Antimatter Reactor Zionite Weapon Casing Long-range Tractor Beam Advanced Remote Datajack CR-A16's Pointy Stick Peak State ------------ > --- POWER ------------ Vortex Chain Reactor > --- PROPULSION ------- Advanced Heavy Treads Centrium Heavy Treads Centrium Heavy Treads > --- UTILITY ---------- Huge Storage Unit Experimental Sensor Array Improved Signal Interpreter Experimental Core Analyzer Layered Heavy Armor Plating Graphene Brace Advanced Force Field Combat Drone Bay > --- WEAPON ----------- Disintegrator CR-A16's Pointy Stick > --- INVENTORY -------- Light Antimatter Reactor Centrium Heavy Treads Experimental Cooling System Zionite Biocell Zionite Biocell High-capacity Matter Pod Experimental Optical Array Zionite Weapon Casing Zionite Weapon Casing Makeshift Armor Plating Centrium Medium Armor Plating Long-range Tractor Beam Advanced Variable Charge Gun Enhanced Coil Gun Advanced KE Penetrator Advanced KE Penetrator Helical Railgun Improved Proton Missile Launcher Heavy Missile Launcher RU-N14's Throwing Claymores v3 RU-N14's Throwing Claymores v3 RU-N14's Throwing Claymores v3 RU-N14's Throwing Claymores v3 Portable AFG [Rating: 183] Favorites ----------- Power Heavy Ion Engine Engine Heavy Ion Engine Power Core Neutrino Core Reactor Antimatter Reactor Propulsion Compact Wheel Treads Centrium Heavy Treads Wheel Compact Wheel Utility Huge Storage Unit Device Experimental Sensor Array Storage Huge Storage Unit Processor Improved Signal Interpreter Hackware Hacking Suite Protection Improved Medium Armor Plating Weapon Enhanced Autogun Energy Gun Advanced Beam Rifle Energy Cannon Advanced Plasma Cannon Ballistic Gun Enhanced Autogun Ballistic Cannon Hypervelocity Gauss Cannon Launcher Improved Proton Missile Launcher Special Weapon RU-N14's Throwing Claymores v3 Impact Weapon Heavy Flail Slashing Weapon Plasma Sword Piercing Weapon CR-A16's Pointy Stick Special Melee Weapon Improved Datajack Build | -11 -10 -10 -9 -9 -9 -8 -8 -8 -7 -7 -7 -7 -6 -6 -6 -6 -6 -6 -6 -5 -5 -5 -5 -5 -5 -4 -4 -4 -4 -3 -3 -3 ------- Run | Scr Mat Min Mat Min Exi Min Mat Sto Fac Low Low Dat Pro Fac Was Fac Low Low Zio Pro Fac Ext Cet Arc Hub Fac Upp Upp War Pro Res Tes Slots Evolved 14 | . . . 2 . . . 2 . 2 . . . . 2 . . . . . . 2 . . . . 2 . . . . 2 . Power 1 | . . . . . . . . . . . . . . . . . . . . . . . . . . 1 . . . . . . Propulsion 4 | . . . . . . . . . . . . . . 2 . . . . . . . . . . . . . . . . 2 . Utility 8 | . . . 2 . . . 1 . 2 . . . . . . . . . . . 2 . . . . 1 . . . . . . Weapon 1 | . . . . . . . 1 . . . . . . . . . . . . . . . . . . . . . . . . . Parts Attached 831 | 7 28 15 48 17 . . 37 56 67 11 4 3 3 41 3 28 8 10 12 33 87 51 26 2 20 40 14 2 23 1 39 95 Power 24 | 1 . . 3 . . . 1 2 2 . 1 . . 2 1 . . . . . 1 1 1 . . . . . 1 . . 7 Engine 9 | 1 . . 3 . . . 1 2 1 . . . . 1 . . . . . . . . . . . . . . . . . . Core 4 | . . . . . . . . . 1 . 1 . . 1 . . . . . . 1 . . . . . . . . . . . Reactor 11 | . . . . . . . . . . . . . . . 1 . . . . . . 1 1 . . . . . 1 . . 7 Propulsion 108 | 2 15 4 21 9 . . 8 7 3 . . . . 4 . . . 1 3 5 12 . 2 . 1 . . . . . 2 9 Treads 50 | . 7 2 7 3 . . 2 3 . . . . . 1 . . . 1 1 3 6 . 2 . 1 . . . . . 2 9 Leg . | . . . . . . . . . . . . . . . . . . . . . . . . . . . . . . . . . Wheel 58 | 2 8 2 14 6 . . 6 4 3 . . . . 3 . . . . 2 2 6 . . . . . . . . . . . Hover . | . . . . . . . . . . . . . . . . . . . . . . . . . . . . . . . . . Flight . | . . . . . . . . . . . . . . . . . . . . . . . . . . . . . . . . . Utility 406 | 2 5 4 12 5 . . 18 24 38 3 1 . 1 13 2 17 6 6 4 16 43 41 13 . 14 35 9 1 11 1 24 37 Device 255 | 1 . 1 4 2 . . 8 12 16 1 1 . . 7 . 16 6 5 3 12 37 27 8 . 5 23 3 1 6 1 22 27 Storage 18 | 1 2 1 1 . . . . . 1 . . . . 1 . . . 1 . 1 . 2 . . 2 . . . 1 . . 4 Processor 12 | . 1 . . . . . . . 5 . . . . . 1 . . . . . 2 . . . . . 1 . 1 . . 1 Hackware 10 | . . . . . . . 1 1 1 . . . . 5 1 . . . . . . . . . . . . . . . . 1 Protection 111 | . 2 2 7 3 . . 9 11 15 2 . . 1 . . 1 . . 1 3 4 12 5 . 7 12 5 . 3 . 2 4 Artifact . | . . . . . . . . . . . . . . . . . . . . . . . . . . . . . . . . . Weapon 293 | 2 8 7 12 3 . . 10 23 24 8 2 3 2 22 . 11 2 3 5 12 31 9 10 2 5 5 5 1 11 . 13 42 Energy Gun 41 | 1 . . 1 . . . 4 8 6 1 . 1 . 4 . . . . . . . . 1 . . 2 1 1 1 . 5 4 Energy Cannon 19 | . . . 1 . . . . . 4 . . . . 3 . 2 . 2 . 1 4 . . . . . . . . . . 2 Ballistic Gun 132 | 1 5 3 7 2 . . 4 9 11 4 1 2 1 8 . 7 1 . 2 6 20 5 6 1 2 . . . 4 . 6 14 Ballistic Cannon 20 | . . . . . . . . 1 . . . . . . . . . . . . 6 2 1 . 2 2 3 . 3 . . . Launcher 45 | . 2 3 1 1 . . 1 1 3 3 1 . 1 7 . 2 1 1 1 4 1 . 2 . . 1 1 . 1 . 1 5 Special Weapon 20 | . 1 1 2 . . . 1 1 . . . . . . . . . . . . . . . . 1 . . . 2 . . 11 Impact Weapon 1 | . . . . . . . . . . . . . . . . . . . 1 . . . . . . . . . . . . . Slashing Weapon 5 | . . . . . . . . 3 . . . . . . . . . . . . . . . . . . . . . . . 2 Piercing Weapon 9 | . . . . . . . . . . . . . . . . . . . . 1 . 2 . 1 . . . . . . 1 4 Special Melee Weapon 1 | . . . . . . . . . . . . . . . . . . . 1 . . . . . . . . . . . . . Unidentified Prototypes 36 | . . 1 2 . . . . 4 2 . . . . 1 . . . . . 1 1 . 4 . 6 1 . . 5 . . 8 Corrupted Parts 6 | . . . . . . . . . . . . . . . . . . . . 1 . . . . 2 . . . . . . 3 System Corruption 18 | . . . . . . . . . . . . . . . . . . . . 3 . . . . 3 . . . . . . 12 Parts Lost 84 | . . 1 8 1 . . 8 1 10 . 1 . 1 5 . 1 . 2 . 1 . 3 1 . . 4 1 . . . . 35 Power 9 | . . . . . . . 1 . 1 . 1 . . 1 . . . . . . . . . . . . . . . . . 5 Propulsion 14 | . . 1 1 . . . 2 . 1 . . . . . . . . 1 . . . . . . . . . . . . . 8 Utility 43 | . . . 6 1 . . 4 1 6 . . . 1 2 . 1 . . . 1 . 3 . . . 4 1 . . . . 12 Weapon 18 | . . . 1 . . . 1 . 2 . . . . 2 . . . 1 . . . . 1 . . . . . . . . 10 Highest Loss Streak 9 | . . 1 3 1 . . 3 1 7 . 1 . 1 2 . 1 . 2 . 1 . 2 1 . . 2 1 . . . . 9 To Critical Strikes . | . . . . . . . . . . . . . . . . . . . . . . . . . . . . . . . . . Average Slot Usage (%) 85 | . 100 99 99 100 100 100 98 99 95 92 91 71 91 85 86 81 80 75 61 70 74 84 87 88 88 82 83 84 79 78 70 62 Engine 3 | . 14 14 11 11 11 11 8 9 5 7 2 . . . . . . . . . . . . . . . . . . . . . Reactor 2 | . . . . . . . . . . . . . . . . 6 6 6 6 6 4 2 5 5 5 5 5 5 5 5 4 5 Treads 4 | . 2 1 . 7 . . . . . . . . . . . . . 3 1 4 4 11 11 11 11 10 10 10 10 10 14 11 Wheel 9 | . 25 26 21 14 22 22 17 17 10 7 7 7 7 12 13 13 13 8 10 12 10 . . . . . . . . . . . Device 12 | . 2 . 10 18 . . 15 13 17 13 15 15 15 7 6 8 13 11 6 7 11 17 16 17 17 16 23 21 19 14 14 12 Storage 7 | . 14 14 11 11 11 11 9 9 7 7 7 7 7 6 6 6 6 7 6 6 5 6 5 5 5 5 5 5 5 5 4 4 Processor 6 | . . . . . . . . . 3 15 15 15 15 13 20 13 13 13 9 4 7 6 5 5 5 5 8 10 9 10 9 8 Hackware 1 | . . . . . . . 1 9 7 . . . . 17 13 6 . . . . . . . . . . . . . . . . Protection 13 | . 11 14 22 14 33 33 17 13 16 16 15 15 14 . . 4 6 6 6 6 7 15 23 23 22 22 14 15 15 15 8 5 Energy Gun 3 | . 4 . 1 . . . 18 16 16 6 7 . 7 1 . . . . . . . . . . . . . . 1 . . . Ballistic Gun 12 | . 23 27 17 21 22 22 8 9 4 15 14 2 13 13 20 18 19 10 6 15 13 13 10 5 9 5 5 5 7 15 12 7 Ballistic Cannon 1 | . . . . . . . . . . . . . . . . . . . . . 1 2 4 5 6 9 9 9 4 . . . Naked Turns . | . . . . . . . . . . . . . . . . . . . . . . . . . . . . . . . . . Heaviest Build 187 | 14 34 54 102 105 105 105 113 116 137 114 118 118 120 116 107 134 133 139 162 170 183 171 161 156 157 166 154 154 175 167 185 187 Greatest Support 240 | 32 40 40 40 32 32 32 32 32 32 28 28 28 28 56 56 56 56 70 40 98 150 150 160 160 160 160 160 160 160 160 240 230 Greatest Overweight (x) 44 | . 1 3 3 3 3 3 6 3 6 4 4 4 4 3 1 2 2 4 5 4 6 1 1 . . 1 . . 1 1 . 44 Average Overweight (x) 1 | . . 1 2 3 3 3 3 3 3 3 3 3 4 1 1 1 2 3 3 3 2 . . . . . . . . 1 . . Largest Inventory Capacity 25 | 8 15 20 25 25 25 25 25 25 25 25 25 25 25 25 25 25 25 25 25 25 25 25 25 25 25 25 25 25 25 25 25 25 Average Capacity 24 | 7 12 19 24 25 25 25 25 25 25 25 25 25 25 25 25 25 25 25 25 25 25 25 25 25 25 25 25 25 25 25 25 24 Most Carried 25 | 6 15 18 25 25 25 25 25 25 25 25 25 25 25 25 25 25 22 22 25 25 25 25 25 24 25 25 25 25 25 25 25 25 Average Carried 23 | 3 9 17 22 24 24 24 23 24 24 24 24 25 24 23 24 21 22 20 24 24 24 22 24 24 24 23 24 25 24 25 24 20 Final Capacity 25 | 8 15 20 25 25 25 25 25 25 25 25 25 25 25 25 25 25 25 25 25 25 25 25 25 25 25 25 25 25 25 25 25 5 Final Carried 25 | 6 15 18 23 24 23 25 25 25 24 25 25 25 24 24 25 22 22 21 25 25 25 25 24 24 25 24 25 25 25 25 25 5 Class Distribution -------------------- 43% | Scavenger-Tank 24% | Mutant 14% | Scavenger-Mutant 5% | Tank Dominant Class ---------------- Mutant | -10/Materials Mutant | -10/Mines Mutant | -9/Materials Mutant | -9/Mines Mutant | -9/Exiles Mutant | -8/Mines Scavenger-Tank | -8/Materials Scavenger-Tank | -8/Storage Scavenger-Tank | -7/Factory Scavenger-Tank | -7/Lower Caves Scavenger-Mutant | -7/Lower Caves Scavenger-Mutant | -7/Data Miner Scavenger-Tank | -6/Proximity Caves Hacker-Mutant | -6/Factory Hacker-Gunner | -6/Waste Scavenger-Gunner | -6/Factory Scavenger-Tank | -6/Lower Caves Scavenger-Mutant | -6/Lower Caves Mutant | -6/Zion Scavenger-Mutant | -5/Proximity Caves Scavenger-Tank | -5/Factory Scavenger-Tank | -5/Extension Scavenger-Tank | -5/Cetus Scavenger-Mutant | -5/Archives Scavenger-Tank | -5/Hub_04(d) Scavenger-Tank | -4/Factory Scavenger-Tank | -4/Upper Caves Scavenger-Tank | -4/Upper Caves Scavenger-Mutant | -4/Warlord Scavenger-Tank | -3/Proximity Caves Scavenger-Tank | -3/Research Scavenger-Tank | -3/Testing Resources | -11 -10 -10 -9 -9 -9 -8 -8 -8 -7 -7 -7 -7 -6 -6 -6 -6 -6 -6 -6 -5 -5 -5 -5 -5 -5 -4 -4 -4 -4 -3 -3 -3 ----------- Run | Scr Mat Min Mat Min Exi Min Mat Sto Fac Low Low Dat Pro Fac Was Fac Low Low Zio Pro Fac Ext Cet Arc Hub Fac Upp Upp War Pro Res Tes Matter Collected 23885 | 288 514 371 1245 270 36 24 1128 748 1255 366 128 . 126 1048 865 739 319 238 82 625 2303 2124 685 30 337 1965 434 71 772 150 1576 3023 Remotely 7193 | . . . . . . . . 10 . . . . . . . . 193 95 . . 962 1353 340 . 160 1362 374 . 418 . 979 947 Salvage Created 34757 | 171 712 454 1628 198 . 43 1668 1272 2159 786 200 . 209 2267 1841 568 50 419 . 983 1698 2883 508 31 630 2170 289 . 1311 257 3902 5450 Parts 1672 | 13 63 27 91 16 . 6 91 83 106 41 11 . 5 104 32 37 3 17 . 37 87 91 27 3 22 88 15 . 36 21 231 268 Haulers Intercepted 30 | . 2 . 6 . . . 5 6 1 . . . . . . . . . . 1 3 . . . 3 2 . . . . 1 . Recyclers Shooed 29 | . 2 . 2 1 . . 1 1 . . . . . 6 . 4 . . . . . . . . . 4 . . . . 6 2 Parts Field Recycled . | . . . . . . . . . . . . . . . . . . . . . . . . . . . . . . . . . Retrieved Matter . | . . . . . . . . . . . . . . . . . . . . . . . . . . . . . . . . . Parts Self-Destructed 167 | . . . . . . . . . . 21 8 . . . . . 2 1 . 10 . . . . . . 12 . 92 21 . . Prevented 65 | . . . . . . . . . . 11 . . 5 . . . . 16 . 28 . . . . . . . . 5 . . . Kills | -11 -10 -10 -9 -9 -9 -8 -8 -8 -7 -7 -7 -7 -6 -6 -6 -6 -6 -6 -6 -5 -5 -5 -5 -5 -5 -4 -4 -4 -4 -3 -3 -3 ------- Run | Scr Mat Min Mat Min Exi Min Mat Sto Fac Low Low Dat Pro Fac Was Fac Low Low Zio Pro Fac Ext Cet Arc Hub Fac Upp Upp War Pro Res Tes Combat Hostiles Destroyed 522 | . 16 15 20 8 . . 25 18 37 16 6 . 3 32 6 10 2 6 . 18 23 32 12 . 2 21 12 . 23 8 40 111 Melee 1 | . . . . . . . . . . . . . . . . . . . . . . . . . . . . . . . . 1 Guns 271 | . 10 6 15 7 . . 19 17 26 2 2 . 1 6 6 8 . 1 . 5 13 20 3 . . 6 4 . 5 8 36 45 Cannons 67 | . . . 5 . . . . . 3 . . . . 1 . . . 1 . . 9 12 2 . 2 9 4 . 10 . . 9 AOE 158 | . 6 9 . 1 . . 6 . 6 14 4 . . 20 . 2 2 2 . 10 1 . 7 . . 6 4 . 8 . 1 49 Classes Destroyed 28 | 3 5 . 1 2 . . 2 1 4 2 1 . . 2 1 . . . . . . 1 . . . . . . 2 . . 1 Worker 29 | 1 1 . 2 . . . 1 . 1 . . . . 4 . . . . . . 1 3 . . 1 3 . . . . 7 4 Builder 24 | . 1 1 . . . . 2 . . . . . . 3 . 2 . . . . . 2 . . . 2 . . . . 6 5 Tunneler 13 | 4 . 1 1 . . 2 2 . . . . . . 2 . . . . . . 1 . . . . . . . . . . . Hauler 30 | . 2 . 6 . . . 5 6 1 . . . . . . . . . . 1 3 . . . 3 2 . . . . 1 . Recycler 31 | 1 . 1 5 2 . . 3 1 2 . . . . 2 . 1 . . . . . 2 . . 1 4 . . . . 5 1 Carrier 1 | . . . . . . . . . . . . . . 1 . . . . . . . . . . . . . . . . . . Minesweeper 1 | . . . . . . . . . . 1 . . . . . . . . . . . . . . . . . . . . . . Mechanic 8 | . . . . . . . . . 1 . . . . . . . . . . . . . . . . . . . . . . 7 Operator 3 | . . . . . . . . 1 . . . . . . 1 . . . . . . . . . . . . . . . . 1 Watcher 32 | . 3 . 4 . . . 4 2 2 . . . . 2 . . . . . . . 1 2 . 1 5 . . . . 4 2 Swarmer 97 | . 3 5 6 6 . . 6 4 2 5 . . . . . 4 2 . . 5 3 . 8 . . 4 10 . . 8 7 9 Saboteur 6 | . . . . . . . . . . . . . . 1 . . . . . . . . . . . . . . . . . 5 Grunt 209 | . 13 10 6 . . . 9 1 18 7 6 . 3 24 . 3 . 3 . 6 7 17 1 . . 6 1 . 7 . 10 51 Brawler 18 | . . . . . . . 1 . . . . . . . . . . 1 . 1 . 2 . . . 2 . . 4 . . 7 Duelist 23 | . . . . . . . . . . 3 . . . 2 . . . . . . 2 2 . . . 1 . . 2 . . 11 Protector 5 | . . . . . . . . . . . . . . . . . . . . . . 2 . . . . . . 2 . . 1 Researcher 1 | . . . . . . . . . . . . . . . . . . . . . . . . . . . . . . . . 1 Sentry 54 | . . . 9 . . . 7 11 4 2 . . . . . . . . . 1 2 8 . . 1 3 1 . . . 1 4 Demolisher 1 | . . . . 1 . . . . . . . . . . . . . . . . . . . . . . . . . . . . Specialist 14 | . . . . . . . . . 7 . . . . . . . . . . . . . . . 1 . . . 1 . 2 3 Hunter 29 | . . . . . . . 2 2 1 . . . . 3 . . . 2 . 2 2 . . . . . . . . . 8 7 Programmer 51 | . . . . . . . . . 4 . . . . 2 . 3 . . . 3 7 1 . . . 5 . . 2 . 11 13 Heavy 2 | . . . . . . . . . 1 . . . . . . . . . . . . . . . . . . . . . 1 . Behemoth 2 | . . . . . . . . . . . . . . . . . . . . . . . . . . . . . 2 . . . Compactor 6 | . . . . . . . . . . . . . . . 6 . . . . . . . . . . . . . . . . . Cetus Guard 3 | . . . . . . . . . . . . . . . . . . . . . . . 3 . . . . . . . . . Enhanced Grunt 1 | . . . . . . . . . . . . . . . . . . . . . . . . . . 1 . . . . . . Investigator 1 | . . . . . . . . . . . . . . . . . . . . . . . . . . . . . . . . 1 Executioner 3 | . . . . . . . . . . . . . . . . . . . . . . . . . . . . . 3 . . . Decomposer 1 | . . . . . . . . . . . . . . . . . 1 . . . . . . . . . . . . . . . Samaritan 1 | . . . . . . . . . . . 1 . . . . . . . . . . . . . . . . . . . . . Assembled 1 | . . . . 1 . . . . . . . . . . . . . . . . . . . . . . . . . . . . Best Kill Streak 21 | 5 5 8 4 4 . 1 11 4 10 7 4 . 3 11 1 4 2 3 . 5 4 9 5 . 3 8 6 . 10 4 19 21 Combat Bots Only 17 | . 3 7 4 4 . . 9 4 9 7 4 . 3 7 1 4 2 3 . 5 4 8 5 . 1 4 5 . 10 4 7 17 Max Kills in Single Turn 7 | 1 5 3 2 2 . 1 3 2 2 2 1 . 1 3 1 1 2 1 . 2 2 3 3 . 1 3 2 . 3 1 3 7 Gunslinging 1 | . 1 1 . 1 . . . 1 . . . . . . . . . . . . . . . . . . . . . . 1 1 Exploded 6 | . 3 2 . 1 . . 3 . 2 2 1 . . 2 . 1 2 1 . 2 1 . 3 . . 3 2 . 3 . 1 6 Melee 1 | . . . . . . . . . . . . . . . . . . . . . . . . . . . . . . . . 1 Uniques/NPCs Destroyed . | . . . . . . . . . . . . . . . . . . . . . . . . . . . . . . . . . Combat | -11 -10 -10 -9 -9 -9 -8 -8 -8 -7 -7 -7 -7 -6 -6 -6 -6 -6 -6 -6 -5 -5 -5 -5 -5 -5 -4 -4 -4 -4 -3 -3 -3 -------- Run | Scr Mat Min Mat Min Exi Min Mat Sto Fac Low Low Dat Pro Fac Was Fac Low Low Zio Pro Fac Ext Cet Arc Hub Fac Upp Upp War Pro Res Tes Damage Taken 27453 | . 441 432 1052 238 . . 1069 565 2674 391 208 . 111 1201 . 351 14 679 . 628 602 1906 237 . 115 1548 574 . 284 503 2496 9134 Core 2621 | . 107 63 129 36 . . 110 77 211 28 . . . 161 . 27 . 38 . 22 18 117 . . . 38 39 . 57 42 46 1255 Absorbed by Shields 7099 | . . . 360 65 . . . . 198 . . . . 146 . 126 15 137 . 323 298 711 165 . . . . . . . 1799 2756 Reduced by Siege Mode 911 | . . . . . . . . . . . . . . . . . . . . 3 9 104 3 . . 90 20 . 18 12 127 525 Redirected to Shielding 72 | . . . . . . . . . . . . . . . . . . . . . . . . . . . . . . . . 72 Regen/Repaired (Parts) 2007 | . . . 180 . . . 11 85 23 . . . . . . . . . 1021 . . . . . . . . . . . . 687 Core Remaining (%) 70 | 100 . 32 . . . 58 . 66 . . . . 65 . . . . . . 70 . . . . 86 . . . . 84 . . Volleys Fired 1482 | 18 48 32 126 17 1 3 87 57 101 16 11 . 10 88 47 37 1 16 . 52 100 93 24 . 19 68 35 6 45 10 113 201 Largest 3 | 2 2 2 2 2 2 2 3 3 3 3 3 . 3 3 3 3 1 2 . 3 3 3 3 . 3 3 3 1 3 3 3 3 Hottest 240 | 70 100 46 100 50 46 46 165 184 220 114 114 . 114 234 78 98 39 94 . 90 143 129 129 . 157 157 176 80 157 108 150 240 Shots Fired 3279 | 36 92 58 239 33 2 6 237 159 251 24 14 . 15 146 138 85 3 23 . 81 236 237 66 . 49 185 57 9 86 30 303 379 Gun 2584 | 36 88 51 198 32 2 6 228 153 219 11 9 . 6 81 138 75 2 9 . 53 160 179 42 . 29 64 32 7 31 30 296 317 Cannon 467 | . . . 33 . . . . 3 25 . . . . 30 . 6 . 7 . 2 71 58 21 . 20 119 18 2 48 . . 4 Launcher 172 | . 3 7 1 1 . . 5 . 7 13 5 . 9 35 . 4 1 7 . 26 5 . 3 . . 2 7 . 4 . 7 20 Special 56 | . 1 . 7 . . . 4 3 . . . . . . . . . . . . . . . . . . . . 3 . . 38 Kinetic 2443 | 18 76 51 187 32 2 6 105 58 110 8 7 . 3 69 138 75 2 9 . 53 212 237 63 . 49 177 27 3 65 30 271 300 Thermal 614 | 18 13 . 51 . . . 127 101 134 3 2 . 3 42 . 6 . 2 . 2 19 . . . . 6 23 6 14 . 25 17 Explosive 92 | . 3 7 1 1 . . 5 . . 3 5 . . 6 . . 1 . . 5 . . 3 . . 2 7 . 3 . . 40 Electromagnetic 129 | . . . . . . . . . 7 10 . . 9 29 . 4 . 12 . 21 5 . . . . . . . 4 . 7 21 Robot Hit Streak 28 | 8 12 16 21 7 . 12 24 13 19 4 16 . 17 8 13 7 6 6 . 9 24 17 27 . 6 15 10 . 19 11 28 27 Robot Miss Streak 5 | 2 1 2 5 3 . . 3 4 5 1 . . 1 4 2 4 4 1 . 5 5 3 2 . 4 3 2 . 2 2 5 5 Penetration Max 3 | . . . . . . . . . . . . . . 1 1 1 . . . . 2 3 1 . 1 1 . . 2 1 1 2 Secondary Targets 49 | . 2 2 2 1 . . 1 2 2 . 1 . . . 2 . . . . 1 1 . . . . . . . . 3 11 18 Max Gunslinging Chain 1 | . 1 1 1 1 . . 1 1 1 . 1 . . . 1 . . . . 1 1 . . . . . . . . 1 1 1 Shots Hit Robots 2109 | 22 69 42 156 23 . 5 156 86 164 9 14 . 3 60 104 50 2 15 . 46 157 178 49 1 21 112 19 . 49 17 204 276 Core Hits 1436 | 9 37 36 55 12 . 2 69 37 84 33 11 . 8 104 32 33 5 14 . 47 74 96 31 . 18 64 16 . 64 12 122 311 Critical Kills 130 | . . . . . . . . . . 1 1 . . 1 . . . . . . 12 30 6 . 6 24 4 . 11 3 21 10 Critical Parts Destroyed 181 | . 2 1 . . . . . . . . . . . . 1 . . . . . 32 44 13 . 5 25 2 . 13 2 20 21 Critical Strikes 355 | 3 4 1 2 . . . 6 6 9 1 1 . . 1 2 . . . . . 45 77 23 1 12 50 6 . 27 5 41 32 Burn 28 | 3 2 . 2 . . . 6 6 9 . . . . . . . . . . . . . . . . . . . . . . . Meltdown 1 | . . . . . . . . . . . . . . 1 . . . . . . . . . . . . . . . . . . Destroy 324 | . 2 1 . . . . . . . 1 1 . . . 2 . . . . . 45 77 23 . 12 50 6 . 27 5 41 31 Sever 1 | . . . . . . . . . . . . . . . . . . . . . . . . . . . . . . . . 1 Impale 1 | . . . . . . . . . . . . . . . . . . . . . . . . 1 . . . . . . . . Melee Attacks 32 | . . . . . . . . 3 . . . . . . . . . . 1 3 . 7 . 1 . . . . . . . 17 Impact 1 | . . . . . . . . . . . . . . . . . . . 1 . . . . . . . . . . . . . Slashing 7 | . . . . . . . . 3 . . . . . . . . . . . . . . . . . . . . . . . 4 Piercing 24 | . . . . . . . . . . . . . . . . . . . . 3 . 7 . 1 . . . . . . . 13 Sneak Attacks 3 | . . . . . . . . . . . . . . . . . . . . . . 2 . . . . . . . . . 1 Combat Hostiles 1 | . . . . . . . . . . . . . . . . . . . . . . . . . . . . . . . . 1 Follow-up Attacks . | . . . . . . . . . . . . . . . . . . . . . . . . . . . . . . . . . Damage Inflicted 78016 | 248 1376 1314 2732 443 . 69 3311 1680 4670 1108 824 . 432 5208 2040 1177 123 684 . 2495 2831 2529 1033 60 607 3484 768 . 3883 517 6845 25525 Guns 36659 | 248 940 616 2293 382 . 69 2714 1633 2991 110 178 . 20 927 2040 991 19 64 . 591 1732 1572 296 . 370 1459 275 . 589 517 6045 6978 Cannons 5264 | . . . 393 . . . . 47 293 . . . . 278 . . . 115 . . 782 720 266 . 126 1164 168 . 785 . . 127 Explosions 33632 | . 436 698 46 61 . . 596 . 1386 998 646 . 412 4003 . 186 104 505 . 1904 260 . 471 . 111 745 325 . 2351 . 742 16646 Melee 379 | . . . . . . . . . . . . . . . . . . . . . . 168 . 60 . . . . . . . 151 Ramming 369 | . . . . . . . 1 . . . . . . . . . . . . . 57 69 . . . 116 . . . . 58 68 Kinetic 35025 | 48 802 616 2142 382 . 69 1189 552 1284 50 134 . . 809 2040 991 19 64 . 591 2330 2292 562 . 496 2623 347 . 1374 517 5753 6949 Thermal 8464 | 200 138 . 544 . . . 1525 1128 2283 200 44 . 20 1098 . . . . . 141 314 . . . . . 96 . 28 . 465 240 Explosive 23657 | . 436 698 46 61 . . 596 . 535 435 646 . . 1053 . . 104 . . 618 . . 471 . . 745 325 . 1952 . . 14936 Electromagnetic 8409 | . . . . . . . . . 568 423 . . 412 2248 . 186 . 620 . 1145 130 . . . 111 . . . 371 . 569 1626 Impact . | . . . . . . . . . . . . . . . . . . . . . . . . . . . . . . . . . Slashing 1800 | . . . . . . . . . . . . . . . . . . . . . . . . . . . . . 158 . . 1642 Piercing 292 | . . . . . . . . . . . . . . . . . . . . . . 168 . 60 . . . . . . . 64 Highest Corruption 49 | . 1 1 . . . . . 1 3 3 3 3 3 . 49 49 43 43 43 3 . . . . 5 6 6 6 6 . 10 49 Average Corruption 13 | . 1 1 . . . . . 1 2 3 3 3 3 . 23 41 43 43 43 3 . . . . 3 5 6 6 6 . 6 26 Corruption Purged 10 | . . . . . . . . . . . . . . . . 10 . . . . . . . . . . . . . . . . Corruption Blocked 6 | . . . . . . . . . 6 . . . . . . . . . . . . . . . . . . . . . . . Effects 546 | . 3 8 . . . . . 3 4 35 11 1 15 . 31 62 26 29 4 27 . . . . 1 34 39 30 1 . 21 161 Message Errors 114 | . 1 1 . . . . . 1 . 8 1 . 6 . 6 17 4 5 1 7 . . . . . 6 6 6 . . 5 33 Matter Fused 113 | . . 1 . . . . . 1 2 11 . . 3 . 8 14 5 8 . 4 . . . . 1 5 8 9 . . 6 27 Heat Flow Errors 76 | . 1 1 . . . . . . . 5 5 . 1 . 1 6 4 4 . 2 . . . . . 6 8 5 . . 4 23 Energy Discharges 77 | . . 1 . . . . . 1 1 3 2 1 1 . 5 10 5 2 2 2 . . . . . 7 5 3 . . 2 24 Parts Rejected 4 | . . . . . . . . . . . . . . . . . . . . 1 . . . . . . . . . . . 3 Data Loss (minor) 57 | . 1 2 . . . . . . . 2 2 . . . 1 5 4 4 . 5 . . . . . 7 2 4 1 . 1 16 Data Loss (major) 36 | . . 1 . . . . . . 1 2 . . 1 . 3 2 2 1 . 2 . . . . . 2 5 . . . 3 11 Misfires 28 | . . 1 . . . . . . . 2 . . 3 . 3 4 2 2 . 2 . . . . . . 3 3 . . . 3 Alerts 8 | . . . . . . . . . . 2 . . . . . . . 1 1 2 . . . . . . 1 . . . . 1 Misdirections 4 | . . . . . . . . . . . . . . . . . . . . . . . . . . . . . . . . 4 Weapon Failures 29 | . . . . . . . . . . . 1 . . . 4 4 . 2 . . . . . . . 1 1 . . . . 16 Overload Shots 1 | . . . . . . . . . . . . . . . . . . . . . . . . . . . . . . . . 1 Effects 1 | . . . . . . . . . . . . . . . . . . . . . . . . . . . . . . . . 1 Heat Surge 1 | . . . . . . . . . . . . . . . . . . . . . . . . . . . . . . . . 1 Overflow Damage 914 | . . 30 . . . . . . 11 5 24 . . 122 . . . . . 79 17 33 38 60 . 23 . . 17 . 2 453 Projectiles 104 | . . . . . . . . . . . . . . 21 . . . . . . 15 16 . . . . . . . . . 52 Explosions 709 | . . 30 . . . . . . 11 5 24 . . 101 . . . . . 79 . . 38 . . 23 . . 17 . 2 379 Melee 101 | . . . . . . . . . . . . . . . . . . . . . 2 17 . 60 . . . . . . . 22 Knockbacks 31 | . . . . . . . . 1 . . . . . . . . . . . . 14 4 1 . . 10 . . . . 1 . Impact 5 | . . . . . . . . . . . . . . . . . . . . . 2 1 . . . 1 . . . . 1 . Kinetic 26 | . . . . . . . . 1 . . . . . . . . . . . . 12 3 1 . . 9 . . . . . . Secondary . | . . . . . . . . . . . . . . . . . . . . . . . . . . . . . . . . . Self-Inflicted Damage 530 | . . . 77 . . . . . 35 70 20 . . 62 . . . . . 2 . . . . 75 99 29 . . . . 61 Shots 22 | . . . 1 . . . . . 2 3 1 . . 2 . . . . . 2 . . . . 1 1 1 . . . . 8 Rammed 20 | . . . . . . . 1 . . . . . . . . . . . . . 2 3 . . . 8 . . . . 2 4 Targets Rammed 20 | . . . . . . . 1 . . . . . . . . . . . . . 2 3 . . . 8 . . . . 2 4 Kicked . | . . . . . . . . . . . . . . . . . . . . . . . . . . . . . . . . . Crushed . | . . . . . . . . . . . . . . . . . . . . . . . . . . . . . . . . . Highest Temperature 444 | 160 241 221 252 12 12 12 267 300 282 221 233 . 114 160 199 421 187 225 . 393 247 232 5 . 21 313 218 251 . . 182 444 Average Temperature 71 | 60 55 46 55 6 6 6 84 78 86 76 96 . 45 46 33 95 85 71 . 80 68 58 3 . 14 67 81 108 . . 77 93 Received Heat Transfer 4783 | . 243 195 318 . . . 405 135 770 66 126 . 57 308 . 47 . 65 . 69 87 462 17 . . 213 21 . 12 . 201 966 Effects 12 | . . . 3 . . . . 3 . . . . . . . 1 . . . . 1 . . . . . . . . . . 4 Shutdowns 2 | . . . . . . . . . . . . . . . . 1 . . . . . . . . . . . . . . . 1 Energy Bleed 2 | . . . 1 . . . . . . . . . . . . . . . . . . . . . . . . . . . . 1 Interference 8 | . . . 2 . . . . 3 . . . . . . . . . . . . 1 . . . . . . . . . . 2 Siege Activations 69 | . . . . . . . . . . . . . . . . . . . . 2 8 9 6 . 1 9 3 . 3 2 13 13 Total Turns 1588 | . . . . . . . . . . . . . . . . . . . . 36 234 252 105 . 9 163 50 . 75 22 317 325 Longest Duration 80 | . . . . . . . . . . . . . . . . . . . . 23 80 56 54 . 9 28 18 . 52 12 58 61 Robots Corrupted 21 | . . . . . . . . . . . . . 2 4 . . . 2 . 3 . . . . . . . . . . 3 7 Combat Hostiles 21 | . . . . . . . . . . . . . 2 4 . . . 2 . 3 . . . . . . . . . . 3 7 Parts Fried 42 | . . . . . . . . . . 1 . . 1 7 . . . 3 . 12 . . . . . . . . . . 2 16 Impact Corruptions 4 | . . . . . . . . . . . . . . . . . . . . . 1 2 . . . . . . . . . 1 Robots Melted 4 | . . . . . . . . 1 2 . . . . 1 . . . . . . . . . . . . . . . . . . Combat Hostiles 4 | . . . . . . . . 1 2 . . . . 1 . . . . . . . . . . . . . . . . . . Parts Melted 48 | 3 1 . . . . . 9 6 21 . . . . 2 . . . . . . . 2 . . 2 . . . 1 . . 1 Heat Transferred 15726 | 814 555 . 1110 . . . 3404 2405 4250 211 74 . 37 1435 . . . . . 100 350 . . . . . 111 . 50 . 483 337 Parts Sabotaged 1 | . . . . . . . . . . . . . . . . . . . . . . . . . . . . . . . . 1 Parts Stolen . | . . . . . . . . . . . . . . . . . . . . . . . . . . . . . . . . . Parts Stripped . | . . . . . . . . . . . . . . . . . . . . . . . . . . . . . . . . . Power Chain Reactions 22 | . . . . . . . . . . 5 . . . 9 . . . . . 3 . . . . . . . . 1 . 1 3 Missiles Intercepted . | . . . . . . . . . . . . . . . . . . . . . . . . . . . . . . . . . Alert | -11 -10 -10 -9 -9 -9 -8 -8 -8 -7 -7 -7 -7 -6 -6 -6 -6 -6 -6 -6 -5 -5 -5 -5 -5 -5 -4 -4 -4 -4 -3 -3 -3 ------- Run | Scr Mat Min Mat Min Exi Min Mat Sto Fac Low Low Dat Pro Fac Was Fac Low Low Zio Pro Fac Ext Cet Arc Hub Fac Upp Upp War Pro Res Tes Peak Influence 3066 | 30 319 483 349 287 . 5 368 383 908 . . . . 1166 239 168 . . . . 919 968 1714 888 962 1022 . . . . 978 3066 Initial 685 | . 19 124 129 131 . . 1 117 145 . . . . 73 224 27 . . . . 133 445 541 685 310 471 . . . . . 496 Average 439 | 10 142 339 207 82 . 3 235 237 142 . . . . 596 162 52 . . . . 318 809 1197 743 695 684 . . . . 459 1160 Maximum Alert Level 5 | . 1 2 1 1 . . 1 1 3 . . . . 4 1 . . . . . 3 3 5 3 3 3 . . . . 3 5 Low Security (%) 37 | 100 68 21 47 77 . 100 30 26 80 . . . . 15 36 100 . . . . 58 . . . . . . . . . 32 . Level 1 22 | . 31 59 52 22 . . 69 73 8 . . . . 12 63 . . . . . 4 . . . 5 . . . . . 14 . Level 2 14 | . . 18 . . . . . . 6 . . . . 14 . . . . . . 22 16 15 72 59 52 . . . . 17 39 Level 3 18 | . . . . . . . . . 4 . . . . 56 . . . . . . 14 83 23 27 34 47 . . . . 35 16 Level 4 3 | . . . . . . . . . . . . . . . . . . . . . . . 42 . . . . . . . . 19 Level 5 2 | . . . . . . . . . . . . . . . . . . . . . . . 18 . . . . . . . . 16 High Security . | . . . . . . . . . . . . . . . . . . . . . . . . . . . . . . . . 8 Max Security . | . . . . . . . . . . . . . . . . . . . . . . . . . . . . . . . . . Squads Dispatched 106 | . 4 1 3 . . . 2 3 17 . . . . 9 . 3 . . . . 11 5 . . 4 6 . . . . 8 30 Investigation 16 | . 3 . 2 . . . . 1 2 . . . . 3 . 1 . . . . 1 . . . . . . . . . . 3 Extermination 21 | . . . . . . . . . 4 . . . . 1 . 2 . . . . 4 . . . . 2 . . . . 3 5 Reinforcement 26 | . 1 . 1 . . . 1 1 6 . . . . 2 . . . . . . 2 . . . 3 2 . . . . 5 2 Assault 32 | . . 1 . . . . . . 2 . . . . 2 . . . . . . 1 5 . . 1 2 . . . . . 18 Garrison 11 | . . . . . . . 1 1 3 . . . . 1 . . . . . . 3 . . . . . . . . . . 2 Intercept . | . . . . . . . . . . . . . . . . . . . . . . . . . . . . . . . . . Searches Triggered . | . . . . . . . . . . . . . . . . . . . . . . . . . . . . . . . . . Data Miner Redirects 19 | . . . . . . . . . . . . . . 1 . . . . . . . 5 . . 1 2 . . . . . 10 Construction Impeded 6 | . . . . . . . . . . . . . . 2 . . . . . . . . . . . 1 . . . . 2 1 Haulers Reinforced 5 | . . . . . . . . . 1 . . . . . . . . . . . 2 . . . 1 1 . . . . . . Active Scanning Responses . | . . . . . . . . . . . . . . . . . . . . . . . . . . . . . . . . . Cargo Convoy Interrupts 1 | . . . . . . . . . 1 . . . . . . . . . . . . . . . . . . . . . . . Stealth | -11 -10 -10 -9 -9 -9 -8 -8 -8 -7 -7 -7 -7 -6 -6 -6 -6 -6 -6 -6 -5 -5 -5 -5 -5 -5 -4 -4 -4 -4 -3 -3 -3 --------- Run | Scr Mat Min Mat Min Exi Min Mat Sto Fac Low Low Dat Pro Fac Was Fac Low Low Zio Pro Fac Ext Cet Arc Hub Fac Upp Upp War Pro Res Tes Distress Signals 27 | . 1 . 2 . . . 3 2 1 . . . . 1 . . . . . . . 2 2 . 2 3 . . . . 7 1 Communications Jammed 82 | . . . . . . . . . . . . . . . . . . . . . . . . . 82 . . . . . . . Distress Signals 82 | . . . . . . . . . . . . . . . . . . . . . . . . . 82 . . . . . . . Times Spotted 741 | . 22 19 38 10 . . 40 24 48 16 7 . 5 49 10 13 2 7 . 20 45 65 23 . 17 30 10 . 16 7 49 149 Peak Tracking Total 16 | . 4 7 5 4 9 . 6 4 12 7 4 . 4 7 5 4 2 5 . 5 7 10 6 . 4 5 5 . 12 4 6 16 Tactical Retreats 46 | . 2 . . . . . 3 . 1 . . . 1 . 3 2 . 1 . 1 13 12 1 . . 2 . . 1 . 2 1 Traps | -11 -10 -10 -9 -9 -9 -8 -8 -8 -7 -7 -7 -7 -6 -6 -6 -6 -6 -6 -6 -5 -5 -5 -5 -5 -5 -4 -4 -4 -4 -3 -3 -3 ------- Run | Scr Mat Min Mat Min Exi Min Mat Sto Fac Low Low Dat Pro Fac Was Fac Low Low Zio Pro Fac Ext Cet Arc Hub Fac Upp Upp War Pro Res Tes Traps Triggered 20 | . 2 . . . . . . 2 . . . . . 5 . 5 . . . . . 1 . . 1 2 . . . . . 2 Indirectly 7 | . . . . . . . . . . . . . . 2 . 2 . . . . . . . . 1 . . . . . . 2 Trap Hack Attempts . | . . . . . . . . . . . . . . . . . . . . . . . . . . . . . . . . . Triggered . | . . . . . . . . . . . . . . . . . . . . . . . . . . . . . . . . . Disarmed . | . . . . . . . . . . . . . . . . . . . . . . . . . . . . . . . . . Reprogrammed . | . . . . . . . . . . . . . . . . . . . . . . . . . . . . . . . . . Reused . | . . . . . . . . . . . . . . . . . . . . . . . . . . . . . . . . . Traps Extracted . | . . . . . . . . . . . . . . . . . . . . . . . . . . . . . . . . . Installed . | . . . . . . . . . . . . . . . . . . . . . . . . . . . . . . . . . Triggered 9 | . . . . . . . . . 3 . . . . . . . . . . . . 1 . . . . . . 5 . . . Machines | -11 -10 -10 -9 -9 -9 -8 -8 -8 -7 -7 -7 -7 -6 -6 -6 -6 -6 -6 -6 -5 -5 -5 -5 -5 -5 -4 -4 -4 -4 -3 -3 -3 ---------- Run | Scr Mat Min Mat Min Exi Min Mat Sto Fac Low Low Dat Pro Fac Was Fac Low Low Zio Pro Fac Ext Cet Arc Hub Fac Upp Upp War Pro Res Tes Machines Disabled 85 | . . 2 4 . 1 . 2 5 8 . . . . 18 . . . 1 . . 4 . 5 . 5 6 . . . . 7 17 Max in Single Turn 5 | . . 1 2 . 1 . 1 1 2 . . . . 5 . . . 1 . . 2 . . . 2 3 . . . . 1 2 Garrison Access 10 | . . . . . . . 1 1 3 . . . . 1 . . . . . . 1 . . . . 1 . . . . 1 1 Network Hub 1 | . . . . . . . . . . . . . . . . . . . . . . . . . 1 . . . . . . . Machines Sabotaged . | . . . . . . . . . . . . . . . . . . . . . . . . . . . . . . . . . Garrisons Compromised 1 | . . . . . . . . . 1 . . . . . . . . . . . . . . . . . . . . . . . Overloaded Fab Kills . | . . . . . . . . . . . . . . . . . . . . . . . . . . . . . . . . . Hacking | -11 -10 -10 -9 -9 -9 -8 -8 -8 -7 -7 -7 -7 -6 -6 -6 -6 -6 -6 -6 -5 -5 -5 -5 -5 -5 -4 -4 -4 -4 -3 -3 -3 --------- Run | Scr Mat Min Mat Min Exi Min Mat Sto Fac Low Low Dat Pro Fac Was Fac Low Low Zio Pro Fac Ext Cet Arc Hub Fac Upp Upp War Pro Res Tes Machines Accessed 89 | . 9 . 15 1 2 . 9 11 8 . 2 4 . 11 . 2 2 . 1 . 3 . 1 1 . 1 1 . . . 1 4 Terminals 46 | . 7 . 11 1 . . 6 9 3 . . . . 7 . 1 . . . . . . 1 . . . . . . . . . Fabricators 9 | . . . . . . . . . 2 . . . . 2 . 1 . . . . 2 . . . . . . . . . . 2 Repair Stations 8 | . . . 2 . . . 1 1 1 . . . . 1 . . . . . . . . . . . . . . . . . 2 Recycling Units 3 | . 2 . 1 . . . . . . . . . . . . . . . . . . . . . . . . . . . . . Scanalyzers 2 | . . . 1 . . . 1 . . . . . . . . . . . . . . . . . . . . . . . . . Garrison Access 8 | . . . . . . . 1 1 2 . . . . 1 . . . . . . 1 . . . . 1 . . . . 1 . Total Hacks 296 | . 21 . 45 3 2 . 27 33 14 . 11 26 . 43 . 7 4 . 4 . 7 . 2 25 . 1 3 . . . 4 14 Successful 207 | . 12 . 35 1 2 . 16 21 10 . 11 26 . 23 . 2 4 . 4 . 2 . 1 25 . 1 3 . . . 1 7 Failed 87 | . 8 . 9 2 . . 11 12 4 . . . . 20 . 5 . . . . 5 . 1 . . . . . . . 3 7 Catastrophic 18 | . 2 . 1 1 . . 2 . 2 . . . . 4 . 2 . . . . 1 . 1 . . . . . . . . 2 Database Lockouts 2 | . 1 . 1 . . . . . . . . . . . . . . . . . . . . . . . . . . . . . Manual 142 | . 13 . 19 2 1 . 11 9 1 . . . . 10 . 3 . 1 . . 19 3 1 . 19 6 . . 1 . 9 14 Terminals 153 | . 19 . 37 3 . . 22 30 4 . . . . 32 . 4 . . . . . . 2 . . . . . . . . . Fabricators 22 | . . . . . . . . . 4 . . . . 5 . 3 . . . . 4 . . . . . . . . . . 6 Repair Stations 22 | . . . 4 . . . 2 2 3 . . . . 3 . . . . . . . . . . . . . . . . . 8 Recycling Units 3 | . 2 . 1 . . . . . . . . . . . . . . . . . . . . . . . . . . . . . Scanalyzers 5 | . . . 3 . . . 2 . . . . . . . . . . . . . . . . . . . . . . . . . Garrison Access 16 | . . . . . . . 1 1 3 . . . . 3 . . . . . . 3 . . . . 1 . . . . 4 . Terminal Hacks 141 | . 7 . 20 1 2 . 7 13 2 . 11 26 . 15 . . 4 . 4 . . . 1 25 . . 3 . . . . . Record 49 | . . . . . 1 . . . . . 10 7 . . . . 3 . . . . . . 25 . . 3 . . . . . Part Schematic 21 | . . . 1 . . . . 2 1 . . 11 . 2 . . . . 4 . . . . . . . . . . . . . Robot Schematic 5 | . . . . . . . . . . . . 5 . . . . . . . . . . . . . . . . . . . . Robot Analysis 8 | . 2 . 3 . . . 2 1 . . . . . . . . . . . . . . . . . . . . . . . . Prototype ID Bank 18 | . 2 . 6 . . . 2 2 1 . . 3 . 2 . . . . . . . . . . . . . . . . . . Open Door 6 | . . . . . . . . 3 . . 1 . . . . . 1 . . . . . 1 . . . . . . . . . Branch Access Points 1 | . . . 1 . . . . . . . . . . . . . . . . . . . . . . . . . . . . . Machine Index 1 | . . . . . . . . . . . . . . 1 . . . . . . . . . . . . . . . . . . Terminal Index 4 | . 1 . 1 . . . 1 1 . . . . . . . . . . . . . . . . . . . . . . . . Alert Level 3 | . . . 2 . . . . 1 . . . . . . . . . . . . . . . . . . . . . . . . Unreport Threat 6 | . . . 2 . . . 1 . . . . . . 3 . . . . . . . . . . . . . . . . . . Locate Traps 8 | . 1 . 2 . . . . 1 . . . . . 4 . . . . . . . . . . . . . . . . . . Maintenance Status 1 | . . . . . . . . . . . . . . 1 . . . . . . . . . . . . . . . . . . Hauler Manifests 5 | . 1 . 2 . . . 1 . . . . . . 1 . . . . . . . . . . . . . . . . . . Zone Layout 4 | . . . . 1 . . . 2 . . . . . 1 . . . . . . . . . . . . . . . . . . EX-Prototype ID Bank 1 | . . . . . 1 . . . . . . . . . . . . . . . . . . . . . . . . . . . Fabricator Hacks 13 | . . . . . . . . . 4 . . . . 4 . 1 . . . . 2 . . . . . . . . . . 2 Load Schematic 7 | . . . . . . . . . 2 . . . . 2 . 1 . . . . 1 . . . . . . . . . . 1 Build 6 | . . . . . . . . . 2 . . . . 2 . . . . . . 1 . . . . . . . . . . 1 Repair Station Hacks 16 | . . . 4 . . . 2 2 2 . . . . 1 . . . . . . . . . . . . . . . . . 5 Scan Component 10 | . . . 2 . . . 1 1 1 . . . . 1 . . . . . . . . . . . . . . . . . 4 Repair 6 | . . . 2 . . . 1 1 1 . . . . . . . . . . . . . . . . . . . . . . 1 Recycling Unit Hacks . | . . . . . . . . . . . . . . . . . . . . . . . . . . . . . . . . . Scanalyzer 4 | . . . 2 . . . 2 . . . . . . . . . . . . . . . . . . . . . . . . . Insert Component 2 | . . . 1 . . . 1 . . . . . . . . . . . . . . . . . . . . . . . . . Analyze 2 | . . . 1 . . . 1 . . . . . . . . . . . . . . . . . . . . . . . . . Garrison Access Hacks 6 | . . . . . . . 1 1 1 . . . . 1 . . . . . . . . . . . 1 . . . . 1 . Seal Access 6 | . . . . . . . 1 1 1 . . . . 1 . . . . . . . . . . . 1 . . . . 1 . Unauthorized Hacks 27 | . 5 . 9 . . . 4 5 1 . . . . 2 . 1 . . . . . . . . . . . . . . . . Terminals 24 | . 3 . 8 . . . 4 5 1 . . . . 2 . 1 . . . . . . . . . . . . . . . . Track 3 | . 1 . . . . . . 2 . . . . . . . . . . . . . . . . . . . . . . . . Assimilate 6 | . . . 4 . . . . . 1 . . . . 1 . . . . . . . . . . . . . . . . . . Botnet 7 | . . . 2 . . . 2 1 . . . . . 1 . 1 . . . . . . . . . . . . . . . . Disrupt 3 | . 1 . 1 . . . . 1 . . . . . . . . . . . . . . . . . . . . . . . . Operators 5 | . 1 . 1 . . . 2 1 . . . . . . . . . . . . . . . . . . . . . . . . Fabricators . | . . . . . . . . . . . . . . . . . . . . . . . . . . . . . . . . . Repair Stations . | . . . . . . . . . . . . . . . . . . . . . . . . . . . . . . . . . Recycling Units 3 | . 2 . 1 . . . . . . . . . . . . . . . . . . . . . . . . . . . . . Tunnel 3 | . 2 . 1 . . . . . . . . . . . . . . . . . . . . . . . . . . . . . Scanalyzers . | . . . . . . . . . . . . . . . . . . . . . . . . . . . . . . . . . Garrison Access . | . . . . . . . . . . . . . . . . . . . . . . . . . . . . . . . . . Data Cores Recovered . | . . . . . . . . . . . . . . . . . . . . . . . . . . . . . . . . . Used . | . . . . . . . . . . . . . . . . . . . . . . . . . . . . . . . . . Hacking Detections 57 | . 6 . 10 1 . . 6 8 7 . . . . 10 . 2 . . . . 3 . 1 . . . . . . . . 3 Full Trace Events 12 | . . . 1 . . . 1 1 2 . . . . 3 . 1 . . . . 1 . . . . . . . . . . 2 Feedback Events . | . . . . . . . . . . . . . . . . . . . . . . . . . . . . . . . . . Feedback Blocked . | . . . . . . . . . . . . . . . . . . . . . . . . . . . . . . . . . Robot Schematics Acquired 14 | . . . . . . . . . . . . 5 . . . . . . 3 . . . . . . . . . . . . 6 Robots Built . | . . . . . . . . . . . . . . . . . . . . . . . . . . . . . . . . . Authchips . | . . . . . . . . . . . . . . . . . . . . . . . . . . . . . . . . . Time . | . . . . . . . . . . . . . . . . . . . . . . . . . . . . . . . . . Total Robot Build Rating . | . . . . . . . . . . . . . . . . . . . . . . . . . . . . . . . . . Part Schematics Acquired 74 | . . . 1 . . . 1 2 1 . . 11 . 2 . . . . 19 . 9 . . . 11 . . . . . . 17 Parts Built 11 | . . . . . . . . . 4 . . . . 3 . . . . . . 2 . . . . . . . . . . 2 Authchips . | . . . . . . . . . . . . . . . . . . . . . . . . . . . . . . . . . Time 531 | . . . . . . . . . 148 . . . . 197 . . . . . . 58 . . . . . . . . . . 128 Total Part Build Rating 64 | . . . . . . . . . 20 . . . . 14 . . . . . . 14 . . . . . . . . . . 16 Parts Repaired 6 | . . . 2 . . . 1 1 1 . . . . . . . . . . . . . . . . . . . . . . 1 Time 400 | . . . 77 . . . 136 32 19 . . . . . . . . . . . . . . . . . . . . . . 136 Parts Recycled . | . . . . . . . . . . . . . . . . . . . . . . . . . . . . . . . . . Recycled Matter . | . . . . . . . . . . . . . . . . . . . . . . . . . . . . . . . . . Retrieved Matter . | . . . . . . . . . . . . . . . . . . . . . . . . . . . . . . . . . Retrieved Components . | . . . . . . . . . . . . . . . . . . . . . . . . . . . . . . . . . Parts Scanalyzed 1 | . . . 1 . . . . . . . . . . . . . . . . . . . . . . . . . . . . . Part Schematics Acquired 1 | . . . . . . . 1 . . . . . . . . . . . . . . . . . . . . . . . . . Parts Damaged 1 | . . . . . . . 1 . . . . . . . . . . . . . . . . . . . . . . . . . Bothacking | -11 -10 -10 -9 -9 -9 -8 -8 -8 -7 -7 -7 -7 -6 -6 -6 -6 -6 -6 -6 -5 -5 -5 -5 -5 -5 -4 -4 -4 -4 -3 -3 -3 ------------ Run | Scr Mat Min Mat Min Exi Min Mat Sto Fac Low Low Dat Pro Fac Was Fac Low Low Zio Pro Fac Ext Cet Arc Hub Fac Upp Upp War Pro Res Tes Used RIF Installer . | . . . . . . . . . . . . . . . . . . . . . . . . . . . . . . . . . Robots Hacked . | . . . . . . . . . . . . . . . . . . . . . . . . . . . . . . . . . Non-combat . | . . . . . . . . . . . . . . . . . . . . . . . . . . . . . . . . . Combat . | . . . . . . . . . . . . . . . . . . . . . . . . . . . . . . . . . Robot Hacks Applied . | . . . . . . . . . . . . . . . . . . . . . . . . . . . . . . . . . Relay Couplers Released 6 | . . . . . . . . . 3 . . . . . . . . . . . 1 . . . . . . . . . . 2 Machine Destruction 6 | . . . . . . . . . 3 . . . . . . . . . . . 1 . . . . . . . . . . 2 Fabnet Peak Effective % . | . . . . . . . . . . . . . . . . . . . . . . . . . . . . . . . . . Robots Rewired 25 | . . . . . . . . . . 1 . . . . . . . . . . . 20 . . . . . . 3 . . 1 Allies Hacked . | . . . . . . . . . . . . . . . . . . . . . . . . . . . . . . . . . Hacks Repelled . | . . . . . . . . . . . . . . . . . . . . . . . . . . . . . . . . . Allies | -11 -10 -10 -9 -9 -9 -8 -8 -8 -7 -7 -7 -7 -6 -6 -6 -6 -6 -6 -6 -5 -5 -5 -5 -5 -5 -4 -4 -4 -4 -3 -3 -3 -------- Run | Scr Mat Min Mat Min Exi Min Mat Sto Fac Low Low Dat Pro Fac Was Fac Low Low Zio Pro Fac Ext Cet Arc Hub Fac Upp Upp War Pro Res Tes Total Allies 63 | . . 4 2 . . . . . 1 1 . . 1 1 . . . . 4 . 2 30 4 . 9 . . . 3 . . 1 Largest Group 13 | . . 3 3 2 1 1 1 . 1 1 . . 1 1 1 . . . 4 4 2 13 11 5 12 1 . . 3 . . 1 Highest-Rated Group 719 | . . 40 40 20 10 10 10 . 26 30 . . 96 96 26 . . . 152 152 55 349 719 474 604 91 . . 154 . . 151 Highest-Rated Ally 159 | . . 31 16 10 10 10 10 . 26 30 . . 96 96 26 . . . 40 40 30 159 159 159 96 91 . . 56 . . 151 Zionite Dispatches 5 | . . . . . . . . . . . . . . . . . . . . . 2 . . . 3 . . . . . . . Light 1 | . . . . . . . . . . . . . . . . . . . . . . . . . 1 . . . . . . . Fire 2 | . . . . . . . . . . . . . . . . . . . . . . . . . 2 . . . . . . . Kinetic Resupply 1 | . . . . . . . . . . . . . . . . . . . . . 1 . . . . . . . . . . . Infowar Resupply 1 | . . . . . . . . . . . . . . . . . . . . . 1 . . . . . . . . . . . Total Orders 36 | . . . 8 8 1 2 3 . 1 . . . . . . . . . . . 3 . 9 . . . . . 1 . . . STAY 18 | . . . 4 4 1 1 2 . 1 . . . . . . . . . . . . . 4 . . . . . 1 . . . ROAM 1 | . . . . . . . . . . . . . . . . . . . . . . . 1 . . . . . . . . . FOLLOW 14 | . . . 4 4 . 1 1 . . . . . . . . . . . . . . . 4 . . . . . . . . . DROP 3 | . . . . . . . . . . . . . . . . . . . . . 3 . . . . . . . . . . . Ally Attacks 517 | . . 28 27 . . . . . . . . . 5 36 . . . . . 18 . 150 94 15 109 13 . . 1 . . 21 Total Damage 13197 | . . 232 341 . . . . . . . . . 184 1130 . . . . . 417 . 3374 3143 860 2422 458 . . 43 . . 593 Kills 97 | . . 3 6 . . . . . . . . . 1 8 . . . . . 3 . 20 29 5 18 4 . . . . . . Allies Corrupted 2 | . . . . . . . . . . . . . . . . . . . . . . 1 . . . . . . . . . 1 Allies Melted 1 | . . . . . . . . . . . . . . . . . . . . . . . . . . . . . 1 . . . Intel | -11 -10 -10 -9 -9 -9 -8 -8 -8 -7 -7 -7 -7 -6 -6 -6 -6 -6 -6 -6 -5 -5 -5 -5 -5 -5 -4 -4 -4 -4 -3 -3 -3 ------- Run | Scr Mat Min Mat Min Exi Min Mat Sto Fac Low Low Dat Pro Fac Was Fac Low Low Zio Pro Fac Ext Cet Arc Hub Fac Upp Upp War Pro Res Tes Robot Analysis Total 8 | . 2 . 3 . . . 2 1 . . . . . . . . . . . . . . . . . . . . . . . . Derelict Logs Recovered 13 | . . 1 . 1 . . . . . 3 1 . 2 . . . 1 . 2 1 . . . . . . 1 . . . . . Drone Launches 2 | . . . . . . . . . . . . . . . . . . . . . . . . . . . . . . . . 2 Drone Recoveries . | . . . . . . . . . . . . . . . . . . . . . . . . . . . . . . . . . Zionite Intel Received 12 | . . . . . . . . . . . . . . . . . . . . . 3 . . . 2 1 . . . . 2 4 Branch Access 3 | . . . . . . . . . . . . . . . . . . . . . 1 . . . . 1 . . . . 1 . Prototype Stockpiles 1 | . . . . . . . . . . . . . . . . . . . . . . . . . . . . . . . . 1 Component Schematics 1 | . . . . . . . . . . . . . . . . . . . . . . . . . . . . . . . . 1 Prototype Schematics 2 | . . . . . . . . . . . . . . . . . . . . . 1 . . . 1 . . . . . . . Unaware Schematics 1 | . . . . . . . . . . . . . . . . . . . . . . . . . . . . . . . . 1 Unaware Analyses 1 | . . . . . . . . . . . . . . . . . . . . . 1 . . . . . . . . . . . Trap Installations 3 | . . . . . . . . . . . . . . . . . . . . . . . . . 1 . . . . . 1 1 Exploration | -11 -10 -10 -9 -9 -9 -8 -8 -8 -7 -7 -7 -7 -6 -6 -6 -6 -6 -6 -6 -5 -5 -5 -5 -5 -5 -4 -4 -4 -4 -3 -3 -3 ------------- Run | Scr Mat Min Mat Min Exi Min Mat Sto Fac Low Low Dat Pro Fac Was Fac Low Low Zio Pro Fac Ext Cet Arc Hub Fac Upp Upp War Pro Res Tes Turns Passed 43556 | 151 1393 856 2935 1768 575 764 1708 2051 2540 1716 867 145 862 1618 634 1046 501 530 2117 1597 2470 2329 932 93 782 1447 1296 1094 1467 967 1271 3034 Spaces Moved 22658 | 85 875 631 1642 662 373 518 761 1042 1363 1106 536 96 460 991 430 600 374 302 1432 940 1103 902 417 50 375 500 717 675 741 385 455 1119 Core 6 | 1 . . . . . . . . . . . . . . . . . . . . . . . . . . . . . . . 5 Treads 6560 | . 9 2 1 . . . . . . . . . . . . . . 10 . 3 204 902 417 50 375 500 717 675 741 385 455 1114 Legs . | . . . . . . . . . . . . . . . . . . . . . . . . . . . . . . . . . Wheels 16092 | 84 866 629 1641 662 373 518 761 1042 1363 1106 536 96 460 991 430 600 374 292 1432 937 899 . . . . . . . . . . . Hover . | . . . . . . . . . . . . . . . . . . . . . . . . . . . . . . . . . Flight . | . . . . . . . . . . . . . . . . . . . . . . . . . . . . . . . . . Fastest Speed 50 | 50 100 115 110 135 145 145 145 145 145 145 145 145 160 115 115 115 130 130 125 140 126 160 160 160 160 160 160 160 160 240 155 100 Average Speed 148 | 99 110 115 139 144 145 145 145 145 147 147 154 146 160 116 115 125 130 151 144 141 149 170 165 160 160 195 160 160 166 240 158 177 Slowest Speed 2250 | 100 160 240 320 145 145 145 190 145 190 160 160 160 160 145 115 130 130 240 175 240 240 240 240 160 160 240 160 160 240 240 160 2250 Overloaded Moves . | . . . . . . . . . . . . . . . . . . . . . . . . . . . . . . . . . Propulsion Burnouts . | . . . . . . . . . . . . . . . . . . . . . . . . . . . . . . . . . Robots Hopped . | . . . . . . . . . . . . . . . . . . . . . . . . . . . . . . . . . Cave-ins Triggered 1 | . . . . . . . . . . . . . . . . . . . . . . . . . . . . . . . . 1 Exploration Rate (%) 65 | 5 96 95 98 98 70 88 54 93 24 89 67 70 48 30 93 10 61 51 89 85 21 83 80 66 47 14 83 82 87 68 15 91 Regions Visited 32 Branch Regions 22 Pre-discovered Areas 9 | . 2 . 1 . 1 . . . . 2 1 1 . . . . 1 . . . . . . . . . . . . . . . Known Exits Taken 26 | . . 1 1 . . 1 1 1 1 1 1 1 1 . . 1 1 1 1 1 1 1 1 1 1 1 1 1 1 1 1 . Unknown Exits Taken 4 | 1 1 . . 1 1 . . . . . . . . . . . . . . . . . . . . . . . . . . . Scrap Searched 30 | . . 1 . 3 . 2 . . . 3 3 . 4 . . . 2 2 3 3 . . . . . . 2 1 . 1 . . Spaces Dug 82 | . 1 . 6 . . . 2 4 9 . . . . 7 . 5 . . . 4 6 . . . . 4 7 2 5 . 6 14 Terrain Destroyed 1444 | . 24 33 48 4 . . 52 6 56 64 47 . . 152 . 7 13 1 . 64 62 4 . . 170 94 60 6 48 12 31 386 Melee 16 | . . . . . . . . 2 . . . . . . . . . . . 3 . . . . . . . . . . . 11 Projectile 200 | . 1 . 7 . . . 4 4 14 . . . . 19 . 7 . 1 . 2 13 . . . 5 17 17 6 6 12 26 39 AOE 1222 | . 23 33 41 4 . . 48 . 42 64 47 . . 133 . . 13 . . 59 49 . . . 165 77 43 . 42 . 4 335 Terrain Rammed . | . . . . . . . . . . . . . . . . . . . . . . . . . . . . . . . . . Walls Destroyed . | . . . . . . . . . . . . . . . . . . . . . . . . . . . . . . . . . Machines Disabled . | . . . . . . . . . . . . . . . . . . . . . . . . . . . . . . . . . Actions | -11 -10 -10 -9 -9 -9 -8 -8 -8 -7 -7 -7 -7 -6 -6 -6 -6 -6 -6 -6 -5 -5 -5 -5 -5 -5 -4 -4 -4 -4 -3 -3 -3 --------- Run | Scr Mat Min Mat Min Exi Min Mat Sto Fac Low Low Dat Pro Fac Was Fac Low Low Zio Pro Fac Ext Cet Arc Hub Fac Upp Upp War Pro Res Tes Total 29725 | 115 1203 697 2028 1434 407 525 1161 1451 1724 1164 561 101 574 1334 503 836 383 348 1489 1126 1739 1488 603 60 515 803 811 682 903 406 758 1793 Wait 3817 | . 229 11 170 732 29 3 252 243 152 28 5 . 102 182 13 158 1 20 16 73 388 136 120 5 82 178 43 . 41 11 127 267 Move 22627 | 84 874 630 1641 661 372 517 760 1041 1362 1105 535 95 459 991 429 599 373 301 1431 939 1102 901 416 49 374 499 716 674 740 384 454 1119 Hop . | . . . . . . . . . . . . . . . . . . . . . . . . . . . . . . . . . Pick Up 235 | 6 14 4 23 3 2 2 14 18 18 1 3 . . 12 5 5 . 1 12 11 22 3 5 . 6 5 1 . 9 . 11 19 Fast Attach 137 | 7 2 2 5 1 . . 2 9 7 . 1 3 . 6 1 5 . . 5 5 14 8 4 . 5 3 1 . 9 . 1 31 Attach 130 | . 2 2 10 1 . . 9 2 12 . . . 1 6 . 5 . 2 7 6 12 6 1 1 2 8 1 . 2 . 5 27 Detach 38 | . . 2 2 . . . 1 1 1 . . . . . . 1 . . 4 1 4 3 2 1 1 3 1 . 2 . 1 7 Swap 564 | . 24 11 33 15 . . 26 45 48 11 3 . 2 29 2 18 8 8 . 22 61 37 21 1 13 29 12 2 12 1 33 37 Drop 284 | . 10 3 18 4 3 . 9 32 23 1 3 3 . 12 6 8 . . 13 14 34 8 10 . 11 2 . . 20 . 11 26 Fire 1482 | 18 48 32 126 17 1 3 87 57 101 16 11 . 10 88 47 37 1 16 . 52 100 93 24 . 19 68 35 6 45 10 113 201 Melee 32 | . . . . . . . . 3 . . . . . . . . . . 1 3 . 7 . 1 . . . . . . . 17 Ram . | . . . . . . . . . . . . . . . . . . . . . . . . . . . . . . . . . Kick . | . . . . . . . . . . . . . . . . . . . . . . . . . . . . . . . . . Crush 20 | . . . . . . . 1 . . . . . . . . . . . . . 2 3 . . . 8 . . . . 2 4 Escape Stasis 9 | . . . . . . . . . . . . . . 8 . . . . . . . 1 . . . . . . . . . . Rewire 350 | . . . . . . . . . . 2 . . . . . . . . . . . 282 . 2 2 . 1 . 23 . . 38 Trap . | . . . . . . . . . . . . . . . . . . . . . . . . . . . . . . . . . Miscellaneous . | . . . . . . . . . . . . . . . . . . . . . . . . . . . . . . . . . Route ------- -11/Scrapyard -10/Materials (discovered 4 exits: *Mat x3 / [*Min]) -10/Mines (discovered 2 exits: *Mat x2) -9/Materials (discovered 5 exits: *Mat x3 / *Min x2) -9/Mines (discovered 3 exits: *Mat x2 / *Exi) -9/Exiles -8/Mines -8/Materials (discovered 3 exits: *Fac x2 / *Sto) -8/Storage (discovered 2 exits: *Fac / [Rec]) -7/Factory (discovered 3 exits: *Fac x2 / *Low) -7/Lower Caves -7/Lower Caves -7/Data Miner -6/Proximity Caves -6/Factory (discovered 2 exits: *Fac x2) -6/Waste -6/Factory -6/Lower Caves -6/Lower Caves -6/Zion -5/Proximity Caves -5/Factory (discovered 7 exits: *Fac x3 / *Upp x2 / *Ext x2) -5/Extension (discovered 2 exits: *Fac / *Cet) -5/Cetus (discovered 3 exits: *Fac x2 / *Arc) -5/Archives -5/Hub_04(d) -4/Factory (discovered 2 exits: *Upp x2) -4/Upper Caves -4/Upper Caves (discovered 2 exits: *Res / *War) -4/Warlord -3/Proximity Caves -3/Research (discovered 3 exits: Arm / *Tes x2) -3/Testing (discovered 1 exit: *Res) History --------- Turn | Location | Event 9 | -11/Scrapyard | Discovered new exit (range 15) 152 | -11/Scrapyard | Entered Materials 305 | -10/Materials | Build established: Mutant 605 | -10/Materials | Discovered new exit (range 8) 608 | -10/Materials | Central database locked down 755 | -10/Materials | Discovered new exit (range 4) 869 | -10/Materials | Discovered new exit (range 10) 1036 | -10/Materials | Discovered new exit (range 8) 1330 | -10/Materials | Identified exit to Materials 1545 | -10/Materials | Entered Mines 1546 | -10/Mines | Met a Derelict testing a Signal Generator 1549 | -10/Mines | Found Signal Generator 1647 | -10/Mines | Learned location of 1 exit from Materials 1709 | -10/Mines | Core integrity fell below 50% 1738 | -10/Mines | Destroyed 7 combat bots 1869 | -10/Mines | Found a damaged Exp. Sensor Array with a note attached 1872 | -10/Mines | Found Prototype Device 1872 | -10/Mines | Identified Exp. Sensor Array 2055 | -10/Mines | Discovered exit to Materials (range 8) 2095 | -10/Mines | Assisted by bots powering up and referring to "LRC-V3" 2108 | -10/Mines | Discovered exit to Materials (range 9) 2401 | -10/Mines | Entered Materials 2401 | -9/Materials | Accompanied by 3 allies 2401 | -9/Materials | Evolved 2 slots: Utility x2 2402 | -9/Materials | Identified exit to Materials 2989 | -9/Materials | Discovered exit to Materials (range 11) 3126 | -9/Materials | Repaired Lgt. Armor Plating 3312 | -9/Materials | Discovered exit to Materials (range 14) 3458 | -9/Materials | Discovered new exit (range 6) 3890 | -9/Materials | Discovered new exit (range 7) 3964 | -9/Materials | Identified exit to Mines 4065 | -9/Materials | Lost 3 parts (3u) 4231 | -9/Materials | Build established: Scavenger-Mutant 4773 | -9/Materials | Build established: Mutant 4833 | -9/Materials | Central database locked down 5170 | -9/Materials | Repaired Imp. Assault Rifle 5336 | -9/Materials | Entered Mines 5336 | -9/Mines | Accompanied by 2 allies 5351 | -9/Mines | Discovered exit to Materials (range 10) 5467 | -9/Mines | Found a hidden stash of uninstalled traps 5547 | -9/Mines | Deemed a non-threat by the Exiles lab entrance 5587 | -9/Mines | Learned 4 Materials zone layouts 5687 | -9/Mines | Assembled infested the area 6726 | -9/Mines | Discovered exit to Materials (range 10) 7099 | -9/Mines | Discovered new exit (range 5) 7104 | -9/Mines | Entered Exiles 7104 | -9/Exiles | Accompanied by 1 ally 7141 | -9/Exiles | Met 8R-AWN 7161 | -9/Exiles | Met EX-HEX 7255 | -9/Exiles | Met EX-DEC 7282 | -9/Exiles | Learned location of Zion (-6) 7333 | -9/Exiles | Discovered new exit (range 14) 7438 | -9/Exiles | Met EX-BIN 7458 | -9/Exiles | Aligned with FarCom system 7459 | -9/Exiles | Given EX-Vault access code 7493 | -9/Exiles | Opened EX-Vault 7505 | -9/Exiles | Found Latent Energy Streamer 7535 | -9/Exiles | Warned to stay clear of 0b10 Research branches 7644 | -9/Exiles | Attacked by the Exiles 7679 | -9/Exiles | Entered Mines 7679 | -8/Mines | Accompanied by 1 ally 7992 | -8/Mines | Discovered exit to Materials (range 6) 8443 | -8/Mines | Entered Materials 8443 | -8/Materials | Accompanied by 1 ally 8443 | -8/Materials | Evolved 2 slots: Utility x1, Weapon x1 8444 | -8/Materials | Identified exit to Storage 8444 | -8/Materials | Identified exit to Factory 8615 | -8/Materials | Destroyed 9 combat bots 9056 | -8/Materials | Lost 3 parts (2n1u) 9168 | -8/Materials | Garrison activated, responded to threat 9353 | -8/Materials | Build established: Scavenger-Tank 9785 | -8/Materials | Discovered exit to Factory (range 16) 10043 | -8/Materials | Repaired Broken Exp. Sensor Array 10151 | -8/Materials | Entered Storage 10644 | -8/Storage | Repaired Med. Armor Plating? 10930 | -8/Storage | Discovered new exit (range 20) 11238 | -8/Storage | Garrison activated, responded to threat 11858 | -8/Storage | Discovered exit to Factory (range 8) 12202 | -8/Storage | Entered Factory 12202 | -7/Factory | Evolved 2 slots: Utility x2 12244 | -7/Factory | Discovered new exit (range 4) 12532 | -7/Factory | Fabricated Adv. Plasma Cannon (x2) 13042 | -7/Factory | Repaired Lrn. Tractor Beam 13262 | -7/Factory | Fabricated Arm. Huge Wheel (x2) 13808 | -7/Factory | Cargo convoy interrupted 14336 | -7/Factory | Discovered new exit (range 7) 14376 | -7/Factory | Garrison activated, responded to threat 14463 | -7/Factory | Lost 7 parts (6u1w) 14505 | -7/Factory | Destroyed 9 combat bots 14741 | -7/Factory | Identified exit to Lower Caves 14742 | -7/Factory | Discovered new exit (range 13) 14742 | -7/Factory | Entered Lower Caves 15055 | -7/Lower Caves | Attracted the attention of an 0b10 outpost 15432 | -7/Lower Caves | Encountered a Warlord checkpoint 15585 | -7/Lower Caves | Discovered new exit (range 5) 15609 | -7/Lower Caves | Identified exit to Lower Caves 15971 | -7/Lower Caves | Attracted the attention of an 0b10 checkpoint 15999 | -7/Lower Caves | Destroyed 7 combat bots 16280 | -7/Lower Caves | Learned Factory terminal intel 16458 | -7/Lower Caves | Entered another Lower Caves area 16639 | -7/Lower Caves | Identified exit to Data Miner 16733 | -7/Lower Caves | Learned 8 Factory zone layouts 16733 | -7/Lower Caves | Learned Armory trap positions 16733 | -7/Lower Caves | Learned Factory stockpile data 16733 | -7/Lower Caves | Learned Research stockpile data 16733 | -7/Lower Caves | Learned Extension stockpile data 16733 | -7/Lower Caves | Learned Research security intel 16733 | -7/Lower Caves | Learned Research terminal intel 16733 | -7/Lower Caves | Learned Extension terminal intel 17085 | -7/Lower Caves | Build established: Scavenger-Mutant 17325 | -7/Lower Caves | Entered Data Miner 17327 | -7/Data Miner | Discovered new exit (range 6) 17355 | -7/Data Miner | Met Data Miner 17388 | -7/Data Miner | Learned location of Section 7 (-2) 17388 | -7/Data Miner | Acquired the access code to Warlord's prototype stash 17411 | -7/Data Miner | Received God Mode back door access code from Data Miner 17469 | -7/Data Miner | Identified exit to Proximity Caves 17470 | -7/Data Miner | Entered Proximity Caves 17564 | -6/Proximity Caves | Learned Factory garrison access intel 17749 | -6/Proximity Caves | Build established: Scavenger-Tank 18282 | -6/Proximity Caves | Escorted by Enhanced Grunt 18308 | -6/Proximity Caves | Discovered new exit (range 8) 18330 | -6/Proximity Caves | Identified exit to Factory 18332 | -6/Proximity Caves | Entered Factory 18332 | -6/Factory | Accompanied by 1 ally 18332 | -6/Factory | Evolved 2 slots: Propulsion x2 18335 | -6/Factory | Loaded intel: 24 terminal locations 18336 | -6/Factory | Loaded intel: 4 garrison access locations 18623 | -6/Factory | Fabricated Arm. Huge Wheel (x2) 18781 | -6/Factory | Garrison activated, responded to threat 18862 | -6/Factory | Fabricated Combat Drone Bay? 19032 | -6/Factory | First assault squad dispatched 19053 | -6/Factory | Incoming assault squad redirected 19116 | -6/Factory | Destroyed 7 combat bots 19204 | -6/Factory | Build established: Hacker-Mutant 19478 | -6/Factory | Discovered new exit (range 16) 19530 | -6/Factory | Identified exit to Factory 19839 | -6/Factory | Discovered exit to Factory (range 12) 19910 | -6/Factory | Build established: Hacker-Skirmisher 19950 | -6/Factory | Sucked down chute 19950 | -6/Factory | Entered Waste 19965 | -6/Waste | EMP discharged 19980 | -6/Waste | 1 allies followed down the chute 19983 | -6/Waste | Spotted C-40 Crusher 20010 | -6/Waste | Destroyed C-40 Crusher 20020 | -6/Waste | Spotted C-40 Crusher 20041 | -6/Waste | Spotted C-40 Crusher 20043 | -6/Waste | Spotted C-40 Crusher 20065 | -6/Waste | EMP discharged 20065 | -6/Waste | System corruption reached 10% 20087 | -6/Waste | Discovered new exit (range 13) 20098 | -6/Waste | Destroyed C-40 Crusher 20127 | -6/Waste | Destroyed C-40 Crusher 20138 | -6/Waste | Spotted C-40 Crusher 20165 | -6/Waste | EMP discharged 20265 | -6/Waste | EMP discharged 20294 | -6/Waste | Build established: Hacker-Gunner 20327 | -6/Waste | Destroyed C-40 Crusher 20365 | -6/Waste | EMP discharged 20365 | -6/Waste | System corruption reached 30% 20464 | -6/Waste | Destroyed C-40 Crusher 20465 | -6/Waste | EMP discharged 20503 | -6/Waste | Destroyed C-40 Crusher 20528 | -6/Waste | Found Damper Plating 20565 | -6/Waste | EMP discharged 20579 | -6/Waste | Identified exit to Factory 20584 | -6/Waste | Entered Factory 21616 | -6/Factory | Discovered new exit (range 6) 21622 | -6/Factory | Identified exit to Lower Caves 21630 | -6/Factory | Entered Lower Caves 21703 | -6/Lower Caves | Learned 4 Factory zone layouts 21760 | -6/Lower Caves | Learned Extension trap positions 21957 | -6/Lower Caves | Encountered a Warlord checkpoint 22038 | -6/Lower Caves | Discovered new exit (range 8) 22047 | -6/Lower Caves | Identified exit to Lower Caves 22123 | -6/Lower Caves | Build established: Scavenger-Tank 22131 | -6/Lower Caves | Entered another Lower Caves area 22556 | -6/Lower Caves | Build established: Scavenger-Mutant 22622 | -6/Lower Caves | Discovered new exit (range 6) 22628 | -6/Lower Caves | Identified exit to Zion 22642 | -6/Lower Caves | Acquired the password to a Derelict Tinkerer's latest research 22651 | -6/Lower Caves | Found Prototype Special Weapon 22661 | -6/Lower Caves | Entered Zion 22748 | -6/Zion | System corruption cleaned by Quarantine Array 22800 | -6/Zion | Discovered new exit (range 11) 22810 | -6/Zion | Given the Hacking Drone Bay 22810 | -6/Zion | Found Prototype Device 22961 | -6/Zion | Visited the Megawrench Repair Shop 22989 | -6/Zion | Learned Factory emergency access door positions 23066 | -6/Zion | Build established: Mutant 23084 | -6/Zion | Received a hallucinogenic algorithm 23235 | -6/Zion | Learned Factory terminal intel 23265 | -6/Zion | Given A8's code to call for help 23451 | -6/Zion | Found CR-A16's Pointy Stick 23996 | -6/Zion | Build established: Scavenger-Tank 24072 | -6/Zion | Megawrench repaired 10 parts 24306 | -6/Zion | Found Prototype Special Weapon 24309 | -6/Zion | Found Prototype Special Weapon 24317 | -6/Zion | Found Prototype Special Weapon 24319 | -6/Zion | Found Prototype Special Weapon 24478 | -6/Zion | Imprinted 24480 | -6/Zion | Declared Zion's savior 24610 | -6/Zion | Build established: Tank 24754 | -6/Zion | Identified exit to Proximity Caves 24778 | -6/Zion | Entered Proximity Caves 24778 | -5/Proximity Caves | Accompanied by 4 allies 25065 | -5/Proximity Caves | Build established: Skirmisher 25145 | -5/Proximity Caves | P-70 Sage assimilated allied 3Q-RFV(M) 25757 | -5/Proximity Caves | Build established: Scavenger-Skirmisher 25819 | -5/Proximity Caves | Attracted the attention of an 0b10 checkpoint 26124 | -5/Proximity Caves | Discovered exit to Factory (range 15) 26361 | -5/Proximity Caves | Build established: Scavenger-Tank 26375 | -5/Proximity Caves | Entered Factory 26375 | -5/Factory | Evolved 2 slots: Utility x2 26376 | -5/Factory | Identified exit to Extension 26377 | -5/Factory | Identified exit to Factory 26377 | -5/Factory | Identified exit to Upper Caves 26379 | -5/Factory | Loaded intel: 27 terminal locations 26471 | -5/Factory | Retrieved Zion intel report: Branch Access 26555 | -5/Factory | Retrieved Zion intel report: Prototype Schematics 27093 | -5/Factory | Retrieved Zion intel report: Unaware Analyses 27094 | -5/Factory | Zion Kinetic Resupply teleported in 27243 | -5/Factory | Zion Infowar Resupply teleported in 27384 | -5/Factory | Garrison activated, responded to threat 27905 | -5/Factory | Terminal network hard line cut 28148 | -5/Factory | Fabricated Imp. Heavy Treads? 28471 | -5/Factory | Discovered exit to Factory (range 12) 28845 | -5/Factory | Entered Extension 28846 | -5/Extension | Loaded intel: 29 trap records 28847 | -5/Extension | Loaded intel: 9 terminal locations 28945 | -5/Extension | Disrupted transfer network 29145 | -5/Extension | First assault squad dispatched 29171 | -5/Extension | Destroyed 8 combat bots 29325 | -5/Extension | Incoming assault squad redirected 29368 | -5/Extension | Destroyed 7 combat bots 29765 | -5/Extension | Incoming assault squad redirected 29827 | -5/Extension | Rescued a captive Derelict 29828 | -5/Extension | Rescued a captive Derelict 29875 | -5/Extension | Incoming assault squad redirected 29974 | -5/Extension | Rescued a captive Derelict 29975 | -5/Extension | Rescued a captive Derelict 30074 | -5/Extension | Incoming assault squad redirected 30146 | -5/Extension | Rescued a captive Derelict 30148 | -5/Extension | Rescued a captive Derelict 30403 | -5/Extension | Terminal network hard line cut 30605 | -5/Extension | Spotted B-75 Beast 30613 | -5/Extension | Spotted B-75 Beast 30625 | -5/Extension | Build established: Commander-Mutant 30643 | -5/Extension | Allies destroyed B-75 Beast 30738 | -5/Extension | Rescued a captive Derelict 30745 | -5/Extension | Incoming assault squad redirected 30769 | -5/Extension | Rescued A7 30843 | -5/Extension | Rescued a captive Derelict 30844 | -5/Extension | Rescued a captive Derelict 31061 | -5/Extension | Build established: Scavenger-Tank 31128 | -5/Extension | Discovered exit to Factory (range 10) 31130 | -5/Extension | Discovered new exit (range 6) 31163 | -5/Extension | Identified exit to Cetus 31174 | -5/Extension | Entered Cetus 31174 | -5/Cetus | Accompanied by 7 allies (A7) 31179 | -5/Cetus | Acquired a Cetus Manufacturing Module code from A7 31432 | -5/Cetus | Started Cetus Manufacturing Module 31457 | -5/Cetus | Manufactured an Enhanced Grunt 31468 | -5/Cetus | Escorted A7 to Cetus Mainframe 31482 | -5/Cetus | Manufactured an Enhanced Grunt 31493 | -5/Cetus | Discovered new exit (range 15) 31507 | -5/Cetus | Manufactured an Enhanced Grunt 31532 | -5/Cetus | Manufactured an Enhanced Grunt 31542 | -5/Cetus | Cetus Manufacturing Module disabled 31702 | -5/Cetus | Spotted Cetus Guard 31703 | -5/Cetus | Destroyed Cetus Guard 31713 | -5/Cetus | Allies destroyed Cetus Guard 31717 | -5/Cetus | Destroyed Cetus Guard 31720 | -5/Cetus | Destroyed Cetus Guard 31774 | -5/Cetus | Discovered exit to Factory (range 15) 31782 | -5/Cetus | Scared off Revision 17 31953 | -5/Cetus | Discovered exit to Factory (range 15) 32100 | -5/Cetus | Identified exit to Archives 32106 | -5/Cetus | Entered Archives 32106 | -5/Archives | Accompanied by 5 allies (A7) 32111 | -5/Archives | Received a hacking code to weaken MAIN.C 32146 | -5/Archives | Met Zhirov 32152 | -5/Archives | Reinforcements dispatched to Archives 32163 | -5/Archives | Read partially decrypted archive contents 32167 | -5/Archives | Discovered new exit (range 15) 32187 | -5/Archives | Identified exit to Hub_04(d) 32197 | -5/Archives | Reinforcements dispatched to Archives 32199 | -5/Archives | Entered Hub_04(d) 32199 | -5/Hub_04(d) | Accompanied by 4 allies 32213 | -5/Hub_04(d) | Zion Light squad teleported in 32240 | -5/Hub_04(d) | Zion Fire squad teleported in 32272 | -5/Hub_04(d) | Retrieved Zion intel report: Trap Installations 32277 | -5/Hub_04(d) | Retrieved Zion intel report: Prototype Schematics 32278 | -5/Hub_04(d) | Zion Fire squad teleported in 32449 | -5/Hub_04(d) | Found Prototype Protection 32449 | -5/Hub_04(d) | Identified Zio. Weapon Casing 32468 | -5/Hub_04(d) | Found Zio. Weapon Casing 32582 | -5/Hub_04(d) | Discovered exit to Factory (range 12) 32799 | -5/Hub_04(d) | First assault squad dispatched 32821 | -5/Hub_04(d) | Incoming assault squad redirected 32967 | -5/Hub_04(d) | Network Hub disabled 32970 | -5/Hub_04(d) | Identified RU-N14's Throwing Claymores (x4) 32981 | -5/Hub_04(d) | Entered Factory 32981 | -4/Factory | Accompanied by 1 ally 32981 | -4/Factory | Evolved 2 slots: Power x1, Utility x1 33981 | -4/Factory | First assault squad dispatched 34105 | -4/Factory | Identified Hacking Drone Bay 34114 | -4/Factory | Incoming assault squad redirected 34162 | -4/Factory | Retrieved Zion intel report: Branch Access 34162 | -4/Factory | Identified exit to Upper Caves 34254 | -4/Factory | Incoming assault squad redirected 34373 | -4/Factory | Terminal network hard line cut 34428 | -4/Factory | Entered Upper Caves 34635 | -4/Upper Caves | Attracted the attention of an 0b10 checkpoint 34822 | -4/Upper Caves | Learned Factory terminal intel 34822 | -4/Upper Caves | Learned Factory garrison access intel 35354 | -4/Upper Caves | Learned Research interactive machine intel 35700 | -4/Upper Caves | Discovered new exit (range 15) 35721 | -4/Upper Caves | Identified exit to Upper Caves 35724 | -4/Upper Caves | Entered another Upper Caves area 35728 | -4/Upper Caves | Discovered new exit (range 10) 36268 | -4/Upper Caves | Discovered new exit (range 8) 36269 | -4/Upper Caves | Encountered a Warlord checkpoint 36278 | -4/Upper Caves | Identified exit to Warlord 36818 | -4/Upper Caves | Entered Warlord 36911 | -4/Warlord | System corruption cleaned by Quarantine Array 36935 | -4/Warlord | Build established: Scavenger-Mutant 37214 | -4/Warlord | Found Prototype Special Weapon 37214 | -4/Warlord | Identified RU-N14's Throwing Claymores v3 37221 | -4/Warlord | Found RU-N14's Throwing Claymores v3 37224 | -4/Warlord | Found RU-N14's Throwing Claymores v3 37226 | -4/Warlord | Found RU-N14's Throwing Claymores v3 37230 | -4/Warlord | Found RU-N14's Throwing Claymores v3 37686 | -4/Warlord | Warlord's base attacked by MAIN.C 37813 | -4/Warlord | Rebuked by Warlord 37830 | -4/Warlord | Opened Warlord's prototype stash 37836 | -4/Warlord | Found Prototype Reactor 37836 | -4/Warlord | Identified Vortex Chain Reactor 37854 | -4/Warlord | Found Prototype Processor 37854 | -4/Warlord | Identified Exp. Core Analyzer 38029 | -4/Warlord | Destroyed Executioner 38036 | -4/Warlord | Warlord forces counterattacked 38051 | -4/Warlord | Destroyed B-86 Titan 38097 | -4/Warlord | P-70 Sage assimilated allied W3-M3Q(g) 38106 | -4/Warlord | Spotted Executioner 38109 | -4/Warlord | P-70 Sage assimilated allied 58-7UV(g) 38116 | -4/Warlord | Destroyed Executioner 38166 | -4/Warlord | Destroyed 10 combat bots 38194 | -4/Warlord | Spotted B-90 Cyclops 38200 | -4/Warlord | Spotted Striker 38202 | -4/Warlord | Destroyed Executioner 38204 | -4/Warlord | Destroyed B-90 Cyclops 38225 | -4/Warlord | Destroyed 8 combat bots 38255 | -4/Warlord | Discovered new exit (range 14) 38282 | -4/Warlord | Identified exit to Proximity Caves 38285 | -4/Warlord | Entered Proximity Caves 38305 | -3/Proximity Caves | Build established: Scavenger-Tank 38983 | -3/Proximity Caves | Discovered new exit (range 12) 39250 | -3/Proximity Caves | Identified exit to Research 39252 | -3/Proximity Caves | Entered Research 39252 | -3/Research | Evolved 2 slots: Propulsion x2 39253 | -3/Research | Identified exit to Armory 39256 | -3/Research | Loaded intel: 44 interactive machine locations 39257 | -3/Research | Loaded intel: 23 terminal locations 39713 | -3/Research | Destroyed 7 combat bots 39756 | -3/Research | Retrieved Zion intel report: Trap Installations 40005 | -3/Research | Retrieved Zion intel report: Branch Access 40005 | -3/Research | Identified exit to Testing 40290 | -3/Research | System corruption reached 10% 40490 | -3/Research | Spotted B-86 Titan 40523 | -3/Research | Entered Testing 40572 | -3/Testing | Found Portable AFG 40615 | -3/Testing | Found Prototype Energy Cannon 40615 | -3/Testing | Identified Disintegrator 40703 | -3/Testing | Found Prototype Processor 40703 | -3/Testing | Identified Exp. Melee Analysis Suite 40738 | -3/Testing | Spotted Superbehemoth 40755 | -3/Testing | Spotted PH-97MSA1CPGE 40889 | -3/Testing | Rewired PH-97MSA1CPGE 41058 | -3/Testing | Repaired Broken Centrium Heavy Treads 41072 | -3/Testing | First assault squad dispatched 41088 | -3/Testing | Incoming assault squad redirected 41116 | -3/Testing | Found Corrupted Prototype Reactor 41200 | -3/Testing | Incoming assault squad redirected 41381 | -3/Testing | Retrieved Zion intel report: Trap Installations 41485 | -3/Testing | Retrieved Zion intel report: Prototype Stockpiles 41505 | -3/Testing | Retrieved Zion intel report: Unaware Schematics 41759 | -3/Testing | Discovered new exit (range 8) 41799 | -3/Testing | Incoming assault squad redirected 41799 | -3/Testing | Identified exit to Research 41959 | -3/Testing | Incoming investigation squad redirected 41965 | -3/Testing | Retrieved Zion intel report: Component Schematics 42042 | -3/Testing | Incoming assault squad redirected 42048 | -3/Testing | Terminal network hard line cut 42168 | -3/Testing | Garrison activated, responded to threat 42201 | -3/Testing | Identified Zero-point Reactor 42234 | -3/Testing | Lost 5 parts (1p1n2u1w) 42244 | -3/Testing | Destroyed 9 combat bots 42282 | -3/Testing | System corruption reached 30% 42341 | -3/Testing | Destroyed 9 combat bots 42342 | -3/Testing | Lost 9 parts (2n3u4w) 42362 | -3/Testing | Incoming assault squad redirected 42422 | -3/Testing | Incoming assault squad redirected 42458 | -3/Testing | Lost 5 parts (2p1n2w) 42738 | -3/Testing | Fabricated Adv. Heavy Treads (x2) 42878 | -3/Testing | Build established: Mutant 43039 | -3/Testing | Incoming assault squad redirected 43040 | -3/Testing | Found Unknown Launcher 43040 | -3/Testing | Identified Gamma Bomb Array 43049 | -3/Testing | Incoming assault squad redirected 43078 | -3/Testing | Core integrity fell below 50% 43180 | -3/Testing | Found Prototype Hackware 43180 | -3/Testing | Identified Exp. System Shield 43292 | -3/Testing | Incoming assault squad redirected 43314 | -3/Testing | High security lockdown imminent 43381 | -3/Testing | Destroyed 17 combat bots 43394 | -3/Testing | High security lockdown engaged 43474 | -3/Testing | Crushed by falling debris 43474 | -3/Testing | Core integrity fell below 20% 43485 | -3/Testing | Destroyed 12 combat bots 43505 | -3/Testing | Lost 3 parts (1n2w) 43520 | -3/Testing | Scanned by Researcher 43521 | -3/Testing | Spotted Investigator 43523 | -3/Testing | Destroyed Investigator 43557 | -3/Testing | Destroyed by G-67 Veteran with Field Laser Last Messages --------------- 43546_ P-80 Master stasis bubble strength at 74. 43547_ P-80 Master stasis bubble strength at 67. 43548_ System corrupted: Matter fused (-7). 43548_ Dropped Huge Storage Unit. 43548_ P-80 Master stasis bubble strength at 60. 43549_ Portable AFG generating attraction field. 43549_ G-73 Enforcer overheating. 43549_ P-80 Master stasis bubble strength at 53. 43550_ G-73 Enforcer heat damages Broken Myomer Leg. 43550_ G-73 Enforcer overheating. 43550_ P-80 Master stasis bubble strength at 46. 43551_ The unstable cave ceiling collapses. 43552_ G-73 Enforcer heat short circuits Hvy. Laser. 43554_ Portable AFG generating attraction field. 43554_ P-80 Master stasis bubble strength at 39. 43555_ Destroyed Flexi-carbon Leg. 43555_ P-80 Master stasis bubble strength at 32. 43556_ G-73 Enforcer overheating. 43556_ P-80 Master stasis bubble strength at 25. 43557_ G-73 Enforcer overheating. Map ----- +----------------------------------------------------+ | % =#!"""""%!#???????????????????????? | | ############*## ![%![#???????????????????????? | | # ??# ###########???????????????????????? | | | # """ #?# #?????????????????????????????????? | | + "T" = #?# #?????????????????????????????????? | | # #?# #?????????????????????????????????? | | # #?# #?????????????????????????????????? | | #? """#?# #?????????????????????????????????? | | # #? [ """#?# #?????????????????????????????????? | | # #?? """??# #?????????????????????????????????? | | # #?? ??# #?????????????????????????????????? | | #???######?# #?????????????????????????????????? | | # #??????????# #?????????????????????????????????? | | #??????????# #?????????????????????????????????? | | ############ ######"""##???????????????????????? | | # " "#???????????????????????? | | # #???????????????????????? | | + " " "#???????????????????????? | | ##"""""#???????????????????????? | | ############## # #####???????????????????????? | | ?????????????# # ##############?????????????? | | ### ######### # ![* #?????????????? | | = % **!&/ #?????????????? | | %[ #!!!!/ #?????????????? | | % = =%%%= #?????????????? | | [ @%=!"" "" #?????????????? | | + %/ # ###### g %=[""F"" #?????????????? | | * = #####?# ## g# |=!""" #?????????????? | | # #?##### p # !!! #?????????????? | | = #####????# # # *######?????????????? | | !! #????????## #?????????????? | | !! #????????# #?????????????? | | #????????# #?????????????? | | #???#"""" # < #?????????????? | | #???#T #?????????????? | | ##########???# #?????????????? | | ?????????????############ #?????????????? | | ????????????????????## ## #?????????????? | | ?????????????????????? ##########?????????????? | | ??????????????????????#####??????????????????????? | | ?????????????????????????????????????????????????? | | ?????????????????????????????????????????????????? | | ?????????????????????????????????????????????????? | | ?????????????????????????????????????????????????? | | ?????????????????????????????????????????????????? | | ?????????????????????????????????????????????????? | | ?????????????????????????????????????????????????? | | ?????????????????????????????????????????????????? | | ?????????????????????????????????????????????????? | | ?????????????????????????????????????????????????? | +----------------------------------------------------+ Best States ------------- Heat Dissipation 84 Energy Generation 55 Energy Capacity 1010 Matter Stores 464 Matter Capacity 500 Sight Range 16 Robot Scan Range 20 Terrain Scan Range 16 Terrain Scan Density 10 Jamming Range 14 Armor Coverage 4100 Resistance: KI 30 Resistance: TH 15 Resistance: EM 90 Core Shielding 30 Propulsion Shielding 33 Weapon Shielding 100 Melee Speed Boost 40 Evasion (%) 40 Targeting Accuracy 6 Melee Accuracy 6 Core Analysis 8 Armor Integrity Analysis 30 Recoil Reduction 6 Matter Filtering 50 Offensive Hacking 22 Defensive Hacking 16 Authchip Count 1 Item Schematics ----------------- Hcp. Storage Unit | -9/Materials | Hacked Exp. Sensor Array | -8/Materials | Scanalyzed Lyr. Medium Armor Plating | -8/Storage | Hacked Arm. Huge Wheel | -8/Storage | Hacked Adv. Plasma Cannon | -7/Factory | Hacked Combat Drone Bay | -7/Data Miner | Free Lgt. Regenerative Plating | -7/Data Miner | Free Cld. Cesium-ion Thruster | -7/Data Miner | Free Gravity Neutralizer | -7/Data Miner | Free Antimatter Cannon | -7/Data Miner | Free Cmb. Gravmag System | -7/Data Miner | Free Imp. Transmission Jammer | -7/Data Miner | Free Lrn. Proton Cannon | -7/Data Miner | Free Enh. Gauss Cannon | -7/Data Miner | Free Nuclear Pulse Array | -7/Data Miner | Free Adv. Transmission Jammer | -7/Data Miner | Free Adv. Hardlight Generator | -6/Factory | Hacked Imp. Heavy Treads | -6/Factory | Hacked Arm. Leg | -6/Zion | Archive Adv. Drone Bay | -6/Zion | Archive Imp. Trap Scanner | -6/Zion | Archive Hvy. Treads | -6/Zion | Archive Matter Compressor | -6/Zion | Archive Hyp. Coil Gun | -6/Zion | Archive Hvy. Plasma Cannon | -6/Zion | Archive Adv. Thermal Generator | -6/Zion | Archive Railgun | -6/Zion | Archive Force Field | -6/Zion | Archive Hvy. Phase Cannon | -6/Zion | Archive Hvy. Flak Cannon | -6/Zion | Archive Imp. Focal Shield | -6/Zion | Archive 0b10 Decoder Chip [Skirmisher] | -6/Zion | Archive HERF Cannon | -6/Zion | Archive Beamcaster | -6/Zion | Free Riot Gun | -6/Zion | Free Battle Cannon | -6/Zion | Free Flamer | -6/Zion | Free Prc. Energy Filter | -5/Factory | Z-intel Thunder Hammer | -5/Factory | Z-intel Cld. Pulse Rifle | -5/Factory | Z-intel Cold Fusion Reactor | -5/Factory | Z-intel Hpw. Field Laser | -5/Factory | Z-intel Enh. Flexi-carbon Leg | -5/Factory | Z-intel Lgt. Neutrino Core | -5/Factory | Z-intel Mni. Assault Cannon | -5/Factory | Z-intel Kinetic Spear | -5/Factory | Z-intel Biomechanical Wings | -5/Hub_04(d) | Z-intel Imp. KE Penetrator | -5/Hub_04(d) | Z-intel Enh. Armored Leg | -5/Hub_04(d) | Z-intel Hvy. Proton Cannon | -5/Hub_04(d) | Z-intel Imp. Heavy Laser | -5/Hub_04(d) | Z-intel Gui. EMP Blaster | -5/Hub_04(d) | Z-intel Enh. Coil Gun | -5/Hub_04(d) | Z-intel Neutron Cannon | -5/Hub_04(d) | Z-intel Ion Burst Cannon | -5/Hub_04(d) | Z-intel Plasma Sword | -5/Hub_04(d) | Z-intel Enh. Nuclear Core | -5/Hub_04(d) | Z-intel Cld. Plasma Rifle | -3/Testing | Archive Lrn. Phase Cannon | -3/Testing | Archive Exp. Heat Sink | -3/Testing | Archive Adv. Particle Charger | -3/Testing | Z-intel Imp. Targeting Computer | -3/Testing | Z-intel Shock Absorption System | -3/Testing | Z-intel Hpw. Shock Rifle | -3/Testing | Z-intel Imp. Shock Absorption System | -3/Testing | Z-intel Imp. Hardlight Generator | -3/Testing | Z-intel Linear Accelerator | -3/Testing | Z-intel Adv. Trap Extractor | -3/Testing | Z-intel Imp. Arc Projector | -3/Testing | Z-intel Hardlight Generator | -3/Testing | Z-intel Imp. Propulsion Shielding | -3/Testing | Z-intel Core Analyzer | -3/Testing | Z-intel Adv. Heavy Treads | -3/Testing | Z-intel Adv. Component Analysis Suite | -3/Testing | Z-intel Robot Schematics ------------------ G-47 Trooper | -7/Data Miner | Free A-15 Conveyor | -7/Data Miner | Free B-48 Gladiator | -7/Data Miner | Free W-25 Informer | -7/Data Miner | Free H-66 Slayer | -7/Data Miner | Free K-01 Serf | -6/Zion | Archive L-41 Fighter | -6/Zion | Archive M-28 Smith | -6/Zion | Archive G-67 Veteran | -3/Testing | Archive S-43 Plague | -3/Testing | Z-intel T-07 Excavator | -3/Testing | Z-intel L-61 Swordsman | -3/Testing | Z-intel C-55 Analyst | -3/Testing | Z-intel A-02 Transporter | -3/Testing | Z-intel Fabricated ------------ Adv. Plasma Cannon | x2 | -7/Factory Arm. Huge Wheel | x2 | -7/Factory Arm. Huge Wheel | x2 | -6/Factory Combat Drone Bay | x1 | -6/Factory Imp. Heavy Treads | x2 | -5/Factory Adv. Heavy Treads | x2 | -3/Testing Alien Tech Used ----------------- None Achievements -------------- None Challenges ------------ None Game ------ Seed CarbideHardlightNukerbomber Manual? 0 Play Time 08:20:09 Cumulative 555.6 hours Start 2022.05.08 @ 16:14:31 End 2022.05.10 @ 02:44:59 Sessions 9 Manual Loads 0 Difficulty Rogue Special Mode None Game No. 180 Rogue 176 Adventurer 4 Explorer 0 Win Type - Total 13 Types 6/2/3/0/0/0/1/1/0 Lore% 83 Gallery% 86 Achievement% 73 Wizard Run 0 Options --------- ASCII 1 Keyboard 0 Movement Arrows Keybinds 0 Fullscreen 1 Font 18/SmallcapsGlow Map View 76x50 Tactical HUD 1 Map Filters NONE Filters NONE Steam 1 RUN: b0133ffd-e175-4990-8ccd-d504e693aa25